Workbook

Sheet Itens
A1: ITEM | B1: Ref_Plan | C1: Ref_Num | D1: DESCRIÇÃO DOS SERVIÇOS | E1: UNID | F1: Qtd CTO | G1: R$ Total
A2: 10000 | B2: . | C2: . | D2: CANTEIRO DE OBRAS | I2: =LEFT(TEXT(Tabela_DadosExternos_1[[#This Row],[ITEM ]],"00\.00\.00"),2) -> 01
A3: 10100 | B3: . | C3: . | D3: CANTEIRO DE OBRAS | I3: =LEFT(TEXT(Tabela_DadosExternos_1[[#This Row],[ITEM ]],"00\.00\.00"),2) -> 01
A4: 10101 | B4: SINAPI | C4: 73847/002 | D4: ALUGUEL CONTAINER/ESCRIT/WC C/1 VASO/1 LAV/1 MIC/4 CHUV LARG =2,20M COMPR=6,20M ALT=2,50M CHAPA ACO NERV TRAPEZ FORROC/ ISOL TERMO-ACUST CHASSIS REFORC PISO COMPENS NAVAL INCL INST ELETR/HIDRO-SANIT EXCL TRANSP/CARGA/DESCARGA | E4: MÊS | F4: 48 | G4: 27462.24 | I4: =LEFT(TEXT(Tabela_DadosExternos_1[[#This Row],[ITEM ]],"00\.00\.00"),2) -> 01
A5: 10102 | B5: SINAPI | C5: 73847/005 | D5: ALUGUEL CONTAINER/SANIT C/7 VASOS/1 LAVAT/1 MIC LARG=2,20M COMPR=6,20M ALT=2,50M CHAPA ACO NERV TRAPEZ FORRO C/ISOL TERMO-ACUST CHASSIS REFORC PISO COMPENS NAVAL INCL INST ELET /HIDRO-SANIT EXCL TRANSP/CARGA/DESCARGA | E5: MÊS | F5: 36 | G5: 27871.92 | I5: =LEFT(TEXT(Tabela_DadosExternos_1[[#This Row],[ITEM ]],"00\.00\.00"),2) -> 01
A6: 10103 | B6: SINAPI | C6: 93211 | D6: EXECUÇÃO DE REFEITÓRIO EM CANTEIRO DE OBRA EM ALVENARIA, NÃO INCLUSO M OBILIÁRIO E EQUIPAMENTOS | E6: M2 | F6: 140 | G6: 49957.6 | I6: =LEFT(TEXT(Tabela_DadosExternos_1[[#This Row],[ITEM ]],"00\.00\.00"),2) -> 01
A7: 10104 | B7: SINAPI | C7: 74209/001 | D7: PLACA DE OBRA EM CHAPA DE AÇO GALVANIZADO | E7: M2 | F7: 4 | G7: 1283.4 | I7: =LEFT(TEXT(Tabela_DadosExternos_1[[#This Row],[ITEM ]],"00\.00\.00"),2) -> 01
A8: 10105 | B8: CPOS | C8: 02.01.200 | D8: DESMOBILIZAÇÃO DE CONSTRUÇÃO PROVISÓRIA | E8: M2 | F8: 532.8 | G8: 6500.16 | I8: =LEFT(TEXT(Tabela_DadosExternos_1[[#This Row],[ITEM ]],"00\.00\.00"),2) -> 01
A9: 10106 | B9: SINAPI | C9: 88326 | D9: VIGIA NOTURNO COM ENCARGOS COMPLEMENTARES | E9: H | F9: 17520 | G9: 355305.6 | I9: =LEFT(TEXT(Tabela_DadosExternos_1[[#This Row],[ITEM ]],"00\.00\.00"),2) -> 01
A10: 20000 | B10: . | C10: . | D10: PROJETOS EXECUTIVOS | I10: =LEFT(TEXT(Tabela_DadosExternos_1[[#This Row],[ITEM ]],"00\.00\.00"),2) -> 02
A11: 20100 | B11: . | C11: . | D11: AS BUILT | I11: =LEFT(TEXT(Tabela_DadosExternos_1[[#This Row],[ITEM ]],"00\.00\.00"),2) -> 02
A12: 20101 | B12: CPOS | C12: 01.17.070 | D12: PROJETO EXECUTIVO DE INSTALAÇÕES HIDRÁULICAS A1 | E12: UN | F12: 20 | G12: 22048 | I12: =LEFT(TEXT(Tabela_DadosExternos_1[[#This Row],[ITEM ]],"00\.00\.00"),2) -> 02
A13: 20102 | B13: CPOS | C13: 01.17.110 | D13: PROJETO EXECUTIVO DE INSTALAÇÕES ELÉTRICA EM FORMATO A1 | E13: UN | F13: 20 | G13: 24242.2 | I13: =LEFT(TEXT(Tabela_DadosExternos_1[[#This Row],[ITEM ]],"00\.00\.00"),2) -> 02
A14: 20103 | B14: CPOS | C14: 01.17.130 | D14: PROJETO EXECUTIVO DE ARQUITETURA EM FORMATO A1 | E14: UN | F14: 20 | G14: 73342 | I14: =LEFT(TEXT(Tabela_DadosExternos_1[[#This Row],[ITEM ]],"00\.00\.00"),2) -> 02
A15: 20104 | B15: CPOS | C15: 01.17.140 | D15: PROJETO EXECUTIVO DE ARQUITETURA EM FORMATO A0 | E15: UN | F15: 5 | G15: 25078.05 | I15: =LEFT(TEXT(Tabela_DadosExternos_1[[#This Row],[ITEM ]],"00\.00\.00"),2) -> 02
A16: 20200 | B16: . | C16: . | D16: PROJETO EXECUTIVO - VALA DRENANTE | I16: =LEFT(TEXT(Tabela_DadosExternos_1[[#This Row],[ITEM ]],"00\.00\.00"),2) -> 02
A17: 20201 | B17: CPOS | C17: 01.17.070 | D17: PROJETO EXECUTIVO DE INSTALAÇÕES HIDRÁULICAS A1 | E17: UN | F17: 8 | G17: 8819.2 | I17: =LEFT(TEXT(Tabela_DadosExternos_1[[#This Row],[ITEM ]],"00\.00\.00"),2) -> 02
A18: 30000 | B18: . | C18: . | D18: PAISAGISMO | I18: =LEFT(TEXT(Tabela_DadosExternos_1[[#This Row],[ITEM ]],"00\.00\.00"),2) -> 03
A19: 30100 | B19: . | C19: . | D19: GRAMA | I19: =LEFT(TEXT(Tabela_DadosExternos_1[[#This Row],[ITEM ]],"00\.00\.00"),2) -> 03
A20: 30101 | B20: SINAPI | C20: 85180 | D20: PLANTIO DE GRAMA ESMERALDA EM ROLO | E20: M2 | F20: 5593.89 | G20: 57449.25 | I20: =LEFT(TEXT(Tabela_DadosExternos_1[[#This Row],[ITEM ]],"00\.00\.00"),2) -> 03
A21: 30102 | B21: CPOS | C21: 34.01.010 | D21: TERRA VEGETAL ORGÂNICA COMUM | E21: M3 | F21: 559.389 | G21: 69498.49 | I21: =LEFT(TEXT(Tabela_DadosExternos_1[[#This Row],[ITEM ]],"00\.00\.00"),2) -> 03
A22: 30200 | B22: . | C22: . | D22: ÁRVORES E ARBUSTOS | I22: =LEFT(TEXT(Tabela_DadosExternos_1[[#This Row],[ITEM ]],"00\.00\.00"),2) -> 03
A23: 30201 | B23: SINAPI | C23: 73967/2 | D23: PLANTIO DE ARVORE REGIONAL, ALTURA MAIOR QUE 2,00M, EM CAVAS DE 80X80X80 | E23: UN | F23: 184 | G23: 21943.84 | I23: =LEFT(TEXT(Tabela_DadosExternos_1[[#This Row],[ITEM ]],"00\.00\.00"),2) -> 03
A24: 30202 | B24: CPOS | C24: 340302 | D24: ARBUSTO AZALÉA - H= 0,60 A 0,80 M | E24: UN | F24: 205 | G24: 5182.4 | I24: =LEFT(TEXT(Tabela_DadosExternos_1[[#This Row],[ITEM ]],"00\.00\.00"),2) -> 03
A25: 30203 | B25: FDE | C25: 16.03.228 | D25: ÁRVORE ORNAMENTAL MULUNGU-DO-LITORAL (SUINÃ) H=2,00M | E25: UN | F25: 17 | G25: 2083.6 | I25: =LEFT(TEXT(Tabela_DadosExternos_1[[#This Row],[ITEM ]],"00\.00\.00"),2) -> 03
A26: 30204 | B26: FDE | C26: 16.03.229 | D26: ÁRVORE ORNAMENTAL MULUNGU H=2,00M | E26: UN | F26: 10 | G26: 1403.25 | I26: =LEFT(TEXT(Tabela_DadosExternos_1[[#This Row],[ITEM ]],"00\.00\.00"),2) -> 03
A27: 30205 | B27: FDE | C27: 16.03.223 | D27: ÁRVORE ORNAMENTAL IPÊ-ROXO DE 7 FOLHAS H=2,00M | E27: UN | F27: 9 | G27: 1185.52 | I27: =LEFT(TEXT(Tabela_DadosExternos_1[[#This Row],[ITEM ]],"00\.00\.00"),2) -> 03
A28: 30206 | B28: FDE | C28: 16.03.224 | D28: ÁRVORE ORNAMENTAL JACARANDÁ-PAULISTA H=2,00M | E28: UN | F28: 11 | G28: 1450.18 | I28: =LEFT(TEXT(Tabela_DadosExternos_1[[#This Row],[ITEM ]],"00\.00\.00"),2) -> 03
A29: 30207 | B29: FDE | C29: 16.03.227 | D29: ÁRVORE ORNAMENTAL MIRINDIBA (MIRINDIBA ROSA) H=2,00M | E29: UN | F29: 10 | G29: 1356.25 | I29: =LEFT(TEXT(Tabela_DadosExternos_1[[#This Row],[ITEM ]],"00\.00\.00"),2) -> 03
A30: 30208 | B30: FDE | C30: 16.03.200 | D30: ÁRVORE ORNAMENTAL GUANANDI H=2,00M | E30: UN | F30: 9 | G30: 1205.41 | I30: =LEFT(TEXT(Tabela_DadosExternos_1[[#This Row],[ITEM ]],"00\.00\.00"),2) -> 03
A31: 30209 | B31: FDE | C31: 16.03.201 | D31: ÁRVORE ORNAMENTAL IPÊ-AMARELO-DA-SERRA H=2,00M | E31: UN | F31: 13 | G31: 1689.02 | I31: =LEFT(TEXT(Tabela_DadosExternos_1[[#This Row],[ITEM ]],"00\.00\.00"),2) -> 03
A32: 30210 | B32: CPOS | C32: 34.04.280 | D32: ÁRVORE ORNAMENTAL TIPO MANACA-DA-SERRA | E32: UN | F32: 5 | G32: 1217.6 | I32: =LEFT(TEXT(Tabela_DadosExternos_1[[#This Row],[ITEM ]],"00\.00\.00"),2) -> 03
A33: 30211 | B33: CPOS | C33: 34.03.130 | D33: ARBUSTO ALAMANDA - H= 0,60 A 0,80 M | E33: UN | F33: 118 | G33: 2461.48 | I33: =LEFT(TEXT(Tabela_DadosExternos_1[[#This Row],[ITEM ]],"00\.00\.00"),2) -> 03
A34: 30212 | B34: FDE | C34: 16.03.300 | D34: ARBUSTO ALPÍNIA H=0,50 A 0,70M | E34: UN | F34: 57 | G34: 1655.19 | I34: =LEFT(TEXT(Tabela_DadosExternos_1[[#This Row],[ITEM ]],"00\.00\.00"),2) -> 03
A35: 30213 | B35: FDE | C35: 16.03.077 | D35: ARBUSTO PRIMAVERA H=0.50 A 0.70 M | E35: UN | F35: 13 | G35: 356.7 | I35: =LEFT(TEXT(Tabela_DadosExternos_1[[#This Row],[ITEM ]],"00\.00\.00"),2) -> 03
A36: 30214 | B36: FDE | C36: 16.03.302 | D36: ARBUSTO CLÚSIA H=0,50 A 0,70M | E36: UN | F36: 41 | G36: 1307.02 | I36: =LEFT(TEXT(Tabela_DadosExternos_1[[#This Row],[ITEM ]],"00\.00\.00"),2) -> 03
A37: 30215 | B37: FDE | C37: 16.03.067 | D37: ARBUSTO H=0.50 A 0.70M - BELA EMILIA | E37: UN | F37: 33 | G37: 563.59 | I37: =LEFT(TEXT(Tabela_DadosExternos_1[[#This Row],[ITEM ]],"00\.00\.00"),2) -> 03
A38: 30216 | B38: SIURB | C38: 18.03.53 | D38: UNHA DE GATO (FICUS PUMILA) | E38: UN | F38: 69 | G38: 293.25 | I38: =LEFT(TEXT(Tabela_DadosExternos_1[[#This Row],[ITEM ]],"00\.00\.00"),2) -> 03
A39: 30217 | B39: FDE | C39: 16.03.470 | D39: FRUTÍFERA JAMBOLÃO H=0,50 A 1,00M | E39: UN | F39: 211 | G39: 3006.75 | I39: =LEFT(TEXT(Tabela_DadosExternos_1[[#This Row],[ITEM ]],"00\.00\.00"),2) -> 03
A40: 30218 | B40: FDE | C40: 16.03.311 | D40: ARBUSTO JASMIM-AMARELO H=0,50 A 0,70M | E40: UN | F40: 36 | G40: 895.98 | I40: =LEFT(TEXT(Tabela_DadosExternos_1[[#This Row],[ITEM ]],"00\.00\.00"),2) -> 03
A41: 30219 | B41: FDE | C41: 16.03.075 | D41: ARBUSTO COSTELA- DE -ADAO H=0.50 A 0.70 M | E41: UN | F41: 200 | G41: 6439.68 | I41: =LEFT(TEXT(Tabela_DadosExternos_1[[#This Row],[ITEM ]],"00\.00\.00"),2) -> 03
A42: 30220 | B42: FDE | C42: 16.03.076 | D42: ARBUSTO GUAIMBÊ H=0.50 A 0.70 M | E42: UN | F42: 192 | G42: 4891.86 | I42: =LEFT(TEXT(Tabela_DadosExternos_1[[#This Row],[ITEM ]],"00\.00\.00"),2) -> 03
A43: 30221 | B43: FDE | C43: 16.03.307 | D43: ARBUSTO GUAIMBÊ-DA-FOLHA-ONDULADA H=0,50 A 0,70M | E43: UN | F43: 36 | G43: 1089.3 | I43: =LEFT(TEXT(Tabela_DadosExternos_1[[#This Row],[ITEM ]],"00\.00\.00"),2) -> 03
A44: 30222 | B44: FDE | C44: 16.03.304 | D44: ARBUSTO FILODENDRO H=0,50 A 0,70M | E44: UN | F44: 7 | G44: 676.75 | I44: =LEFT(TEXT(Tabela_DadosExternos_1[[#This Row],[ITEM ]],"00\.00\.00"),2) -> 03
A45: 30223 | B45: FDE | C45: 16.03.090 | D45: ARBUSTO SANQUÉSIA H=0.50 A 0.70 M | E45: UN | F45: 19 | G45: 1613.64 | I45: =LEFT(TEXT(Tabela_DadosExternos_1[[#This Row],[ITEM ]],"00\.00\.00"),2) -> 03
A46: 30224 | B46: FDE | C46: 16.03.312 | D46: ARBUSTO LANTERNA-CHINESA H=0,50 A 0,70M | E46: UN | F46: 20.25 | G46: 507.84 | I46: =LEFT(TEXT(Tabela_DadosExternos_1[[#This Row],[ITEM ]],"00\.00\.00"),2) -> 03
A47: 30225 | B47: FDE | C47: 16.03.096 | D47: FORRACAO - AGAPANTO | E47: M2 | F47: 320.3 | G47: 19479.52 | I47: =LEFT(TEXT(Tabela_DadosExternos_1[[#This Row],[ITEM ]],"00\.00\.00"),2) -> 03
A48: 30226 | B48: FDE | C48: 16.03.107 | D48: FORRAÇÃO GRAMA-AMENDOIM | E48: M2 | F48: 481.15 | G48: 52467.72 | I48: =LEFT(TEXT(Tabela_DadosExternos_1[[#This Row],[ITEM ]],"00\.00\.00"),2) -> 03
A49: 30227 | B49: FDE | C49: 16.03.305 | D49: FORRAÇÃO FLOR-LEOPARDO | E49: M2 | F49: 24.6 | G49: 1646.64 | I49: =LEFT(TEXT(Tabela_DadosExternos_1[[#This Row],[ITEM ]],"00\.00\.00"),2) -> 03
A50: 30228 | B50: FDE | C50: 16.03.103 | D50: FORRAÇÃO BULBINE | E50: M2 | F50: 169.15 | G50: 11423.8 | I50: =LEFT(TEXT(Tabela_DadosExternos_1[[#This Row],[ITEM ]],"00\.00\.00"),2) -> 03
A51: 30229 | B51: FDE | C51: 16.03.080 | D51: ARBUSTO H=0,50 A 0,70 M - CALIANDRA | E51: UN | F51: 228.3 | G51: 4974.3 | I51: =LEFT(TEXT(Tabela_DadosExternos_1[[#This Row],[ITEM ]],"00\.00\.00"),2) -> 03
A52: 30230 | B52: FDE | C52: 16.03.087 | D52: FORRACAO - LANTANA | E52: M2 | F52: 81.1 | G52: 3594.11 | I52: =LEFT(TEXT(Tabela_DadosExternos_1[[#This Row],[ITEM ]],"00\.00\.00"),2) -> 03
A53: 30231 | B53: FDE | C53: 16.03.315 | D53: FORRAÇÃO MORÉIA-AMARELA | E53: M2 | F53: 56.1 | G53: 21776.14 | I53: =LEFT(TEXT(Tabela_DadosExternos_1[[#This Row],[ITEM ]],"00\.00\.00"),2) -> 03
A54: 30232 | B54: FDE | C54: 16.03.303 | D54: FORRAÇÃO FALSO-ÍRIS | E54: M2 | F54: 159.9 | G54: 41176.89 | I54: =LEFT(TEXT(Tabela_DadosExternos_1[[#This Row],[ITEM ]],"00\.00\.00"),2) -> 03
A55: 30233 | B55: FDE | C55: 16.03.111 | D55: FORRAÇÃO OFIOPOGO | E55: M2 | F55: 164.5 | G55: 11591.74 | I55: =LEFT(TEXT(Tabela_DadosExternos_1[[#This Row],[ITEM ]],"00\.00\.00"),2) -> 03
A56: 30234 | B56: FDE | C56: 16.03.114 | D56: FORRAÇÃO TRAPOERABA | E56: M2 | F56: 301.9 | G56: 36353.74 | I56: =LEFT(TEXT(Tabela_DadosExternos_1[[#This Row],[ITEM ]],"00\.00\.00"),2) -> 03
A57: 30235 | B57: FDE | C57: 16.03.093 | D57: FORRACAO - VEDELIA | E57: M2 | F57: 2238.4 | G57: 163126.76 | I57: =LEFT(TEXT(Tabela_DadosExternos_1[[#This Row],[ITEM ]],"00\.00\.00"),2) -> 03
A58: 30236 | B58: CPOS | C58: 34.20.120 | D58: SEIXO ROLADO | E58: M3 | F58: 15.99 | G58: 9437.3 | I58: =LEFT(TEXT(Tabela_DadosExternos_1[[#This Row],[ITEM ]],"00\.00\.00"),2) -> 03
A59: 30300 | B59: . | C59: . | D59: JARDINEIRA | I59: =LEFT(TEXT(Tabela_DadosExternos_1[[#This Row],[ITEM ]],"00\.00\.00"),2) -> 03
A60: 30301 | B60: SIURB | C60: 176035 | D60: RETIRADA DE PARALELEPÍPEDOS (INTERTRAVADO) | E60: M2 | F60: 63.97 | G60: 514.32 | I60: =LEFT(TEXT(Tabela_DadosExternos_1[[#This Row],[ITEM ]],"00\.00\.00"),2) -> 03
A61: 30302 | B61: CPOS | C61: 05.07.050 | D61: REMOÇÃO DE ENTULHO DE OBRA COM CAÇAMBA METÁLICA - MATERIAL VOLUMOSO MISTURADO POR ALVENARIA, TERRA, MADEIRA, PAPEL, PLÁSTICO E METAL | E61: M3 | F61: 10.2352 | G61: 841.54 | I61: =LEFT(TEXT(Tabela_DadosExternos_1[[#This Row],[ITEM ]],"00\.00\.00"),2) -> 03
A62: 30303 | B62: SIURB | C62: 51600 | D62: GA-01 GUIA LEVE OU SEPARADOR DE PISOS | E62: M | F62: 199.72 | G62: 3381.26 | I62: =LEFT(TEXT(Tabela_DadosExternos_1[[#This Row],[ITEM ]],"00\.00\.00"),2) -> 03
A63: 30400 | B63: . | C63: . | D63: ARQUIBANCADA | I63: =LEFT(TEXT(Tabela_DadosExternos_1[[#This Row],[ITEM ]],"00\.00\.00"),2) -> 03
A64: 30401 | B64: SINAPI | C64: 72213 | D64: LIMPEZA MANUAL GERAL COM REMOCAO DE COBERTURA VEGETAL | E64: M2 | F64: 179.42 | G64: 699.74 | I64: =LEFT(TEXT(Tabela_DadosExternos_1[[#This Row],[ITEM ]],"00\.00\.00"),2) -> 03
A65: 30402 | B65: SINAPI | C65: 5622 | D65: REGULARIZACAO E COMPACTACAO MANUAL DE TERRENO COM SOQUETE | E65: M2 | F65: 179.42 | G65: 925.81 | I65: =LEFT(TEXT(Tabela_DadosExternos_1[[#This Row],[ITEM ]],"00\.00\.00"),2) -> 03
A66: 30403 | B66: SINAPI | C66: 72819 | D66: ESTACA A TRADO (BROCA) DIAMETRO 30CM EM CONCRETO ARMADO MOLDADA IN-LOCO, 20 MPA | E66: M | F66: 45 | G66: 4125.15 | I66: =LEFT(TEXT(Tabela_DadosExternos_1[[#This Row],[ITEM ]],"00\.00\.00"),2) -> 03
A67: 30404 | B67: SINAPI | C67: 72820 | D67: CORTE E PREPARO EM CABECA DE ESTACA | E67: UN | F67: 30 | G67: 1308.9 | I67: =LEFT(TEXT(Tabela_DadosExternos_1[[#This Row],[ITEM ]],"00\.00\.00"),2) -> 03
A68: 30405 | B68: SINAPI | C68: 5651 | D68: FORMA TABUA PARA CONCRETO EM FUNDACAO C/ REAPROVEITAMENTO 5X | E68: M2 | F68: 75.17 | G68: 2119.79 | I68: =LEFT(TEXT(Tabela_DadosExternos_1[[#This Row],[ITEM ]],"00\.00\.00"),2) -> 03
A69: 30406 | B69: CPOS | C69: 11.01.160 | D69: CONCRETO USINADO, FCK = 30,0 MPA | E69: M3 | F69: 49.32 | G69: 14068.53 | I69: =LEFT(TEXT(Tabela_DadosExternos_1[[#This Row],[ITEM ]],"00\.00\.00"),2) -> 03
A70: 30407 | B70: SINAPI | C70: 92792 | D70: CORTE E DOBRA DE AÇO CA-50, DIÂMETRO DE 6.3 MM, UTILIZADO EM ESTRUTURAS DIVERSAS, EXCETO LAJES | E70: KG | F70: 3945.6 | G70: 29118.53 | I70: =LEFT(TEXT(Tabela_DadosExternos_1[[#This Row],[ITEM ]],"00\.00\.00"),2) -> 03
A71: 30408 | B71: SINAPI | C71: 73631 | D71: GUARDA-CORPO EM TUBO DE ACO GALVANIZADO 1 1/2" CONFORME PROJETO) | E71: M | F71: 18.4 | G71: 5310.79 | I71: =LEFT(TEXT(Tabela_DadosExternos_1[[#This Row],[ITEM ]],"00\.00\.00"),2) -> 03
A72: 30409 | B72: SINAPI | C72: 79478 | D72: ESCAVACAO MANUAL CAMPO ABERTO EM SOLO EXCETO ROCHA ATE 2,00M PROFUNDIDADE | E72: M3 | F72: 5.98 | G72: 273.94 | I72: =LEFT(TEXT(Tabela_DadosExternos_1[[#This Row],[ITEM ]],"00\.00\.00"),2) -> 03
A73: 30500 | B73: . | C73: . | D73: PERGOLADO E DECK | I73: =LEFT(TEXT(Tabela_DadosExternos_1[[#This Row],[ITEM ]],"00\.00\.00"),2) -> 03
A74: 30501 | B74: CPU | C74: 008 | D74: PERGOLADO EM MADEIRA (CONFORME PROJETO) | E74: CJ | F74: 1 | G74: 314691.6 | I74: =LEFT(TEXT(Tabela_DadosExternos_1[[#This Row],[ITEM ]],"00\.00\.00"),2) -> 03
A75: 30502 | B75: CPU | C75: 009 | D75: DECK EM MADEIRA (CONFORME PROJETO) | E75: VB | F75: 121.11 | G75: 291276.82 | I75: =LEFT(TEXT(Tabela_DadosExternos_1[[#This Row],[ITEM ]],"00\.00\.00"),2) -> 03
A76: 30503 | B76: CPU | C76: 006 | D76: ESTRUTURA METÁLICA PARA APOIO DE DECK (CONFORME PROJETO) | E76: M2 | F76: 120 | G76: 50829.6 | I76: =LEFT(TEXT(Tabela_DadosExternos_1[[#This Row],[ITEM ]],"00\.00\.00"),2) -> 03
A77: 30504 | B77: CPU | C77: 007 | D77: PEÇAS EM CHAPA DE AÇO 3/8' PARA MONTAGEM DO PERGOLADO (CONFORME PROJETO) | E77: KG | F77: 966.57 | G77: 13126.02 | I77: =LEFT(TEXT(Tabela_DadosExternos_1[[#This Row],[ITEM ]],"00\.00\.00"),2) -> 03
A78: 30505 | B78: SINAPI | C78: 74077/3 | D78: LOCACAO CONVENCIONAL DE OBRA, ATRAVÉS DE GABARITO DE TABUAS CORRIDAS PONTALETADAS, COM REAPROVEITAMENTO DE 3 VEZES | E78: M2 | F78: 340.11 | G78: 1581.51 | I78: =LEFT(TEXT(Tabela_DadosExternos_1[[#This Row],[ITEM ]],"00\.00\.00"),2) -> 03
A79: 30506 | B79: DNIT | C79: 3S0400100 | D79: ESCAVAÇÃO MECANIZ. DE VALA EM MATER. DE 1A CAT. | E79: M3 | F79: 2.92 | G79: 43.8 | I79: =LEFT(TEXT(Tabela_DadosExternos_1[[#This Row],[ITEM ]],"00\.00\.00"),2) -> 03
A80: 30507 | B80: CPOS | C80: 06.11.040 | D80: REATERRO MANUAL APILOADO SEM CONTROLE DE COMPACTAÇÃO | E80: M3 | F80: 1.54 | G80: 17.28 | I80: =LEFT(TEXT(Tabela_DadosExternos_1[[#This Row],[ITEM ]],"00\.00\.00"),2) -> 03
A81: 30508 | B81: CPOS | C81: 05.07.050 | D81: REMOÇÃO DE ENTULHO DE OBRA COM CAÇAMBA METÁLICA - MATERIAL VOLUMOSO MISTURADO POR ALVENARIA, TERRA, MADEIRA, PAPEL, PLÁSTICO E METAL | E81: M3 | F81: 4 | G81: 328.88 | I81: =LEFT(TEXT(Tabela_DadosExternos_1[[#This Row],[ITEM ]],"00\.00\.00"),2) -> 03
A82: 30509 | B82: SINAPI | C82: 72819 | D82: ESTACA A TRADO (BROCA) DIAMETRO 30CM EM CONCRETO ARMADO MOLDADA IN-LOCO, 20 MPA | E82: M | F82: 36 | G82: 3300.12 | I82: =LEFT(TEXT(Tabela_DadosExternos_1[[#This Row],[ITEM ]],"00\.00\.00"),2) -> 03
A83: 30510 | B83: SINAPI | C83: 5622 | D83: REGULARIZACAO E COMPACTACAO MANUAL DE TERRENO COM SOQUETE | E83: M2 | F83: 4.5 | G83: 23.22 | I83: =LEFT(TEXT(Tabela_DadosExternos_1[[#This Row],[ITEM ]],"00\.00\.00"),2) -> 03
A84: 30511 | B84: SINAPI | C84: 74115/001 | D84: EXECUÇÃO DE LASTRO EM CONCRETO (1:2,5:6), PREPARO MANUAL | E84: M3 | F84: 0.225 | G84: 79.97 | I84: =LEFT(TEXT(Tabela_DadosExternos_1[[#This Row],[ITEM ]],"00\.00\.00"),2) -> 03
A85: 30512 | B85: SINAPI | C85: 5651 | D85: FORMA TABUA PARA CONCRETO EM FUNDACAO C/ REAPROVEITAMENTO 5X | E85: M2 | F85: 13.68 | G85: 385.78 | I85: =LEFT(TEXT(Tabela_DadosExternos_1[[#This Row],[ITEM ]],"00\.00\.00"),2) -> 03
A86: 30513 | B86: CPOS | C86: 10.01.040 | D86: ARMADURA EM BARRA DE AÇO CA-50 (A OU B) FYK= 500 MPA | E86: KG | F86: 88.2 | G86: 452.47 | I86: =LEFT(TEXT(Tabela_DadosExternos_1[[#This Row],[ITEM ]],"00\.00\.00"),2) -> 03
A87: 30514 | B87: CPOS | C87: 11.01.160 | D87: CONCRETO USINADO, FCK = 30,0 MPA | E87: M3 | F87: 1.26 | G87: 359.42 | I87: =LEFT(TEXT(Tabela_DadosExternos_1[[#This Row],[ITEM ]],"00\.00\.00"),2) -> 03
A88: 30515 | B88: SINAPI | C88: 4343 | D88: PARAFUSO FRANCES ZINCADO, DIAMETRO 1/2'', COMPRIEMNTO 4'', COM PORCA E ARRUELA | E88: UN | F88: 244 | G88: 644.16 | I88: =LEFT(TEXT(Tabela_DadosExternos_1[[#This Row],[ITEM ]],"00\.00\.00"),2) -> 03
A89: 30600 | B89: . | C89: . | D89: MOBILIARIO | I89: =LEFT(TEXT(Tabela_DadosExternos_1[[#This Row],[ITEM ]],"00\.00\.00"),2) -> 03
A90: 30601 | B90: CPU | C90: 019 | D90: BANCO COM ENCOSTO (CONFORME PROJETO) | E90: UN | F90: 62 | G90: 224108.3 | I90: =LEFT(TEXT(Tabela_DadosExternos_1[[#This Row],[ITEM ]],"00\.00\.00"),2) -> 03
A91: 30602 | B91: CPU | C91: 020 | D91: BANCO SEM ENCOSTO (CONFORME PROJETO) | E91: UN | F91: 33 | G91: 86021.76 | I91: =LEFT(TEXT(Tabela_DadosExternos_1[[#This Row],[ITEM ]],"00\.00\.00"),2) -> 03
A92: 30603 | B92: CPU | C92: 021 | D92: MESA RETANGULAR (CONFORME PROJETO) | E92: UN | F92: 7 | G92: 54364.73 | I92: =LEFT(TEXT(Tabela_DadosExternos_1[[#This Row],[ITEM ]],"00\.00\.00"),2) -> 03
A93: 30604 | B93: CPU | C93: 022 | D93: ESPREGUIÇADEIRA (CONFORME PROJETO) | E93: MV | F93: 6 | G93: 39264 | I93: =LEFT(TEXT(Tabela_DadosExternos_1[[#This Row],[ITEM ]],"00\.00\.00"),2) -> 03
A94: 40000 | B94: . | C94: . | D94: SERVIÇOS PRELIMINARES | I94: =LEFT(TEXT(Tabela_DadosExternos_1[[#This Row],[ITEM ]],"00\.00\.00"),2) -> 04
A95: 40100 | B95: . | C95: . | D95: TERRAPLENAGEM | I95: =LEFT(TEXT(Tabela_DadosExternos_1[[#This Row],[ITEM ]],"00\.00\.00"),2) -> 04
A96: 40101 | B96: DNIT | C96: 3S0400100 | D96: ESCAVAÇÃO MECANIZ. DE VALA EM MATER. DE 1A CAT. | E96: M3 | F96: 2183 | G96: 32745 | I96: =LEFT(TEXT(Tabela_DadosExternos_1[[#This Row],[ITEM ]],"00\.00\.00"),2) -> 04
A97: 40102 | B97: SINAPI | C97: 74010/001 | D97: CARGA E DESCARGA MECANICA DE SOLO UTILIZANDO CAMINHAO BASCULANTE 6,0M3/16T E PA CARREGADEIRA SOBRE PNEUS 128 HP, CAPACIDADE DA CAÇAMBA 1,7 A 2,8 M3, PESO OPERACIONAL 11632 KG | E97: M3 | F97: 2183 | G97: 3209.01 | I97: =LEFT(TEXT(Tabela_DadosExternos_1[[#This Row],[ITEM ]],"00\.00\.00"),2) -> 04
A98: 40103 | B98: SINAPI | C98: 74034/001 | D98: ESPALHAMENTO DE MATERIAL DE 1A CATEGORIA COM TRATOR DE ESTEIRA COM 153HP | E98: M3 | F98: 1779 | G98: 3664.74 | I98: =LEFT(TEXT(Tabela_DadosExternos_1[[#This Row],[ITEM ]],"00\.00\.00"),2) -> 04
A99: 40104 | B99: SINAPI | C99: 41722 | D99: COMPACTACAO MECANICA A 100% DO PROCTOR NORMAL - PAVIMENTACAO URBANA | E99: M2 | F99: 5546 | G99: 21407.56 | I99: =LEFT(TEXT(Tabela_DadosExternos_1[[#This Row],[ITEM ]],"00\.00\.00"),2) -> 04
A100: 40105 | B100: SINAPI | C100: 72887 | D100: TRANSPORTE COMERCIAL COM CAMINHAO BASCULANTE 6 M3, RODOVIA PAVIMENTADA | E100: M3xKM | F100: 8080 | G100: 6948.8 | I100: =LEFT(TEXT(Tabela_DadosExternos_1[[#This Row],[ITEM ]],"00\.00\.00"),2) -> 04
A101: 40200 | B101: . | C101: . | D101: EQUIPAMENTOS | I101: =LEFT(TEXT(Tabela_DadosExternos_1[[#This Row],[ITEM ]],"00\.00\.00"),2) -> 04
A102: 40201 | B102: SINAPI | C102: 73618 | D102: LOCACAO MENSAL DE ANDAIME METALICO TIPO FACHADEIRO, INCLUSIVE MONTAGEM | E102: M2 | F102: 500 | G102: 4380 | I102: =LEFT(TEXT(Tabela_DadosExternos_1[[#This Row],[ITEM ]],"00\.00\.00"),2) -> 04
A103: 40202 | B103: SINAPI | C103: 73875/001 | D103: LOCACAO DE ANDAIME METALICO TUBULAR TIPO TORRE | E103: M/MÊS | F103: 400 | G103: 8724 | I103: =LEFT(TEXT(Tabela_DadosExternos_1[[#This Row],[ITEM ]],"00\.00\.00"),2) -> 04
A104: 50000 | B104: . | C104: . | D104: PAVIMENTAÇÃO | I104: =LEFT(TEXT(Tabela_DadosExternos_1[[#This Row],[ITEM ]],"00\.00\.00"),2) -> 05
A105: 50100 | B105: . | C105: . | D105: BASE | I105: =LEFT(TEXT(Tabela_DadosExternos_1[[#This Row],[ITEM ]],"00\.00\.00"),2) -> 05
A106: 50101 | B106: SINAPI | C106: 74205/001 | D106: ESCAVACAO MECANICA DE MATERIAL 1A. CATEGORIA, PROVENIENTE DE CORTE DE SUBLEITO (C/TRATOR ESTEIRAS 160HP) | E106: M3 | F106: 650 | G106: 1079 | I106: =LEFT(TEXT(Tabela_DadosExternos_1[[#This Row],[ITEM ]],"00\.00\.00"),2) -> 05
A107: 50102 | B107: SINAPI | C107: 74010/001 | D107: CARGA E DESCARGA MECANICA DE SOLO UTILIZANDO CAMINHAO BASCULANTE 6,0M3/16T E PA CARREGADEIRA SOBRE PNEUS 128 HP, CAPACIDADE DA CAÇAMBA 1,7 A 2,8 M3, PESO OPERACIONAL 11632 KG | E107: M3 | F107: 650 | G107: 955.5 | I107: =LEFT(TEXT(Tabela_DadosExternos_1[[#This Row],[ITEM ]],"00\.00\.00"),2) -> 05
A108: 50103 | B108: SINAPI | C108: 72856 | D108: TRANSPORTE LOCAL COM CAMINHAO BASCULANTE 6 M3, RODOVIA EM LEITO NATURAL | E108: M3/kM | F108: 19500 | G108: 27885 | I108: =LEFT(TEXT(Tabela_DadosExternos_1[[#This Row],[ITEM ]],"00\.00\.00"),2) -> 05
A109: 50104 | B109: SINAPI | C109: 72961 | D109: REGULARIZACAO E COMPACTACAO DE SUBLEITO ATE 20 CM DE ESPESSURA | E109: M2 | F109: 3250 | G109: 3802.5 | I109: =LEFT(TEXT(Tabela_DadosExternos_1[[#This Row],[ITEM ]],"00\.00\.00"),2) -> 05
A110: 50200 | B110: . | C110: . | D110: REVESTIMENTO ASFÁLTICO | I110: =LEFT(TEXT(Tabela_DadosExternos_1[[#This Row],[ITEM ]],"00\.00\.00"),2) -> 05
A111: 50201 | B111: SINAPI | C111: 72943 | D111: PINTURA DE LIGACAO COM EMULSAO RR-2C | E111: M2 | F111: 6500 | G111: 9165 | I111: =LEFT(TEXT(Tabela_DadosExternos_1[[#This Row],[ITEM ]],"00\.00\.00"),2) -> 05
A112: 50202 | B112: SINAPI | C112: 72945 | D112: IMPRIMACAO DE BASE DE PAVIMENTACAO COM EMULSAO CM-30 | E112: M2 | F112: 3250 | G112: 15892.5 | I112: =LEFT(TEXT(Tabela_DadosExternos_1[[#This Row],[ITEM ]],"00\.00\.00"),2) -> 05
A113: 50203 | B113: SIURB | C113: 05-29-00 | D113: REVESTIMENTO DE PRÉ-MISTURADO À QUENTE (SEM TRANSPORTE) - BINDER | E113: M3 | F113: 162.5 | G113: 97969.63 | I113: =LEFT(TEXT(Tabela_DadosExternos_1[[#This Row],[ITEM ]],"00\.00\.00"),2) -> 05
A114: 50204 | B114: SINAPI | C114: 73710 | D114: BASE PARA PAVIMENTACAO COM BRITA GRADUADA, INCLUSIVE COMPACTACAO | E114: M3 | F114: 325 | G114: 28902.25 | I114: =LEFT(TEXT(Tabela_DadosExternos_1[[#This Row],[ITEM ]],"00\.00\.00"),2) -> 05
A115: 50205 | B115: SIURB | C115: 05-28-00 | D115: REVESTIMENTO DE CONCRETO ASFÁLTICO (SEM TRANSPORTE) - CBUQ | E115: M3 | F115: 162.5 | G115: 103621.38 | I115: =LEFT(TEXT(Tabela_DadosExternos_1[[#This Row],[ITEM ]],"00\.00\.00"),2) -> 05
A116: 50206 | B116: SIURB | C116: 05-78-01 | D116: CARGA, DESCARGA E TRANSPORTE DE CONCRETO ASFÁLTICO ATÉ A DISTÂNCIA MÉDIA DE IDA E VOLTA DE 1KM | E116: M3 | F116: 325 | G116: 3051.75 | I116: =LEFT(TEXT(Tabela_DadosExternos_1[[#This Row],[ITEM ]],"00\.00\.00"),2) -> 05
A117: 50207 | B117: SIURB | C117: 05-78-07 | D117: TRANSPORTE DE CONCRETO ASFÁLTICO ALÉM DO PRIMEIRO KM | E117: M3XKM | F117: 9750 | G117: 16185 | I117: =LEFT(TEXT(Tabela_DadosExternos_1[[#This Row],[ITEM ]],"00\.00\.00"),2) -> 05
A118: 50300 | B118: . | C118: . | D118: ELEMENTOS DE CONCRETO | I118: =LEFT(TEXT(Tabela_DadosExternos_1[[#This Row],[ITEM ]],"00\.00\.00"),2) -> 05
A119: 50301 | B119: SINAPI | C119: 72967 | D119: MEIO-FIO DE CONCRETO PRE-MOLDADO 12 X 30 CM, SOBRE BASE DE CONCRETO SIMPLES E REJUNTADO COM ARGAMASSA TRACO 1:3 (CIMENTO E AREIA) | E119: M | F119: 8 | G119: 265.28 | I119: =LEFT(TEXT(Tabela_DadosExternos_1[[#This Row],[ITEM ]],"00\.00\.00"),2) -> 05
A120: 50302 | B120: CPOS | C120: 54.06.170 | D120: SARJETA OU SARJETÃO MOLDADA NO LOCAL, TIPO PMSP EM CONCRETO COM FCK 25 MPA | E120: M3 | F120: 2 | G120: 877.46 | I120: =LEFT(TEXT(Tabela_DadosExternos_1[[#This Row],[ITEM ]],"00\.00\.00"),2) -> 05
A121: 50303 | B121: CPOS | C121: 49.12.040 | D121: BOCA DE LEÃO/LOBO SIMPLES COM GRELHA | E121: UN | F121: 1 | G121: 1676.48 | I121: =LEFT(TEXT(Tabela_DadosExternos_1[[#This Row],[ITEM ]],"00\.00\.00"),2) -> 05
A122: 50304 | B122: CPOS | C122: 49.12.030 | D122: BOCA DE LOBO DUPLA TIPO PMSP, COM TAMPA DE CONCRETO | E122: UN | F122: 1 | G122: 3123.12 | I122: =LEFT(TEXT(Tabela_DadosExternos_1[[#This Row],[ITEM ]],"00\.00\.00"),2) -> 05
A123: 50305 | B123: SIURB | C123: 51600 | D123: GA-01 GUIA LEVE OU SEPARADOR DE PISOS | E123: M | F123: 1560 | G123: 26410.8 | I123: =LEFT(TEXT(Tabela_DadosExternos_1[[#This Row],[ITEM ]],"00\.00\.00"),2) -> 05
A124: 60000 | B124: . | C124: . | D124: PISOS EXTERNOS | I124: =LEFT(TEXT(Tabela_DadosExternos_1[[#This Row],[ITEM ]],"00\.00\.00"),2) -> 06
A125: 60100 | B125: . | C125: . | D125: BASE - CICLOVIA E INTERTRAVADO | I125: =LEFT(TEXT(Tabela_DadosExternos_1[[#This Row],[ITEM ]],"00\.00\.00"),2) -> 06
A126: 60101 | B126: SINAPI | C126: 74205/001 | D126: ESCAVACAO MECANICA DE MATERIAL 1A. CATEGORIA, PROVENIENTE DE CORTE DE SUBLEITO (C/TRATOR ESTEIRAS 160HP) | E126: M3 | F126: 824.23 | G126: 1368.22 | I126: =LEFT(TEXT(Tabela_DadosExternos_1[[#This Row],[ITEM ]],"00\.00\.00"),2) -> 06
A127: 60102 | B127: SINAPI | C127: 72948 | D127: COLCHAO DE AREIA PARA PAVIMENTACAO EM PARALELEPIPEDO OU BLOCOS DE CONCRETO INTERTRAVADOS | E127: M3 | F127: 535.75 | G127: 40165.18 | I127: =LEFT(TEXT(Tabela_DadosExternos_1[[#This Row],[ITEM ]],"00\.00\.00"),2) -> 06
A128: 60103 | B128: SINAPI | C128: 74010/001 | D128: CARGA E DESCARGA MECANICA DE SOLO UTILIZANDO CAMINHAO BASCULANTE 6,0M3/16T E PA CARREGADEIRA SOBRE PNEUS 128 HP, CAPACIDADE DA CAÇAMBA 1,7 A 2,8 M3, PESO OPERACIONAL 11632 KG | E128: M3 | F128: 824.23 | G128: 1211.62 | I128: =LEFT(TEXT(Tabela_DadosExternos_1[[#This Row],[ITEM ]],"00\.00\.00"),2) -> 06
A129: 60104 | B129: SINAPI | C129: 72856 | D129: TRANSPORTE LOCAL COM CAMINHAO BASCULANTE 6 M3, RODOVIA EM LEITO NATURAL | E129: M3/kM | F129: 16720 | G129: 23909.6 | I129: =LEFT(TEXT(Tabela_DadosExternos_1[[#This Row],[ITEM ]],"00\.00\.00"),2) -> 06
A130: 60105 | B130: SINAPI | C130: 72961 | D130: REGULARIZACAO E COMPACTACAO DE SUBLEITO ATE 20 CM DE ESPESSURA | E130: M2 | F130: 6201.13 | G130: 7255.32 | I130: =LEFT(TEXT(Tabela_DadosExternos_1[[#This Row],[ITEM ]],"00\.00\.00"),2) -> 06
A131: 60200 | B131: . | C131: . | D131: PISO CICLOVIA E ESTACIONAMENTO | I131: =LEFT(TEXT(Tabela_DadosExternos_1[[#This Row],[ITEM ]],"00\.00\.00"),2) -> 06
A132: 60201 | B132: SINAPI | C132: 72183 | D132: PISO EM CONCRETO 20MPA PREPARO MECANICO, ESPESSURA 7 CM, COM ARMACAO EM TELA SOLDADA | E132: M2 | F132: 2080 | G132: 152484.8 | I132: =LEFT(TEXT(Tabela_DadosExternos_1[[#This Row],[ITEM ]],"00\.00\.00"),2) -> 06
A133: 60202 | B133: SINAPI | C133: 92396 | D133: EXECUÇÃO DE PASSEIO EM PISO INTERTRAVADO, COM BLOCO RETANGULAR DE 20 X 10 CM, ESPESSURA 6 CM | E133: M2 | F133: 4201.13 | G133: 210602.65 | I133: =LEFT(TEXT(Tabela_DadosExternos_1[[#This Row],[ITEM ]],"00\.00\.00"),2) -> 06
A134: 70000 | B134: . | C134: . | D134: INFRA-ESTRUTURA | I134: =LEFT(TEXT(Tabela_DadosExternos_1[[#This Row],[ITEM ]],"00\.00\.00"),2) -> 07
A135: 70100 | B135: . | C135: . | D135: INFRA-ESTRUTURA - BASE PORTICO / ELÉTRICO | I135: =LEFT(TEXT(Tabela_DadosExternos_1[[#This Row],[ITEM ]],"00\.00\.00"),2) -> 07
A136: 70101 | B136: SINAPI | C136: 79478 | D136: ESCAVACAO MANUAL CAMPO ABERTO EM SOLO EXCETO ROCHA ATE 2,00M PROFUNDIDADE | E136: M3 | F136: 55.46 | G136: 2540.62 | I136: =LEFT(TEXT(Tabela_DadosExternos_1[[#This Row],[ITEM ]],"00\.00\.00"),2) -> 07
A137: 70102 | B137: CPOS | C137: 06.11.040 | D137: REATERRO MANUAL APILOADO SEM CONTROLE DE COMPACTAÇÃO | E137: M3 | F137: 80.56 | G137: 903.88 | I137: =LEFT(TEXT(Tabela_DadosExternos_1[[#This Row],[ITEM ]],"00\.00\.00"),2) -> 07
A138: 70103 | B138: SINAPI | C138: 73907/006 | D138: LASTRO DE CONCRETO, ESPESSURA 3CM, PREPARO MECANICO | E138: M3 | F138: 31.56 | G138: 619.52 | I138: =LEFT(TEXT(Tabela_DadosExternos_1[[#This Row],[ITEM ]],"00\.00\.00"),2) -> 07
A139: 70104 | B139: SINAPI | C139: 73692 | D139: LASTRO DE AREIA MEDIA | E139: M3 | F139: 16 | G139: 1599.84 | I139: =LEFT(TEXT(Tabela_DadosExternos_1[[#This Row],[ITEM ]],"00\.00\.00"),2) -> 07
A140: 70105 | B140: SINAPI | C140: 74164/004 | D140: LASTRO DE BRITA | E140: M3 | F140: 12 | G140: 1019.28 | I140: =LEFT(TEXT(Tabela_DadosExternos_1[[#This Row],[ITEM ]],"00\.00\.00"),2) -> 07
A141: 70106 | B141: SINAPI | C141: 5651 | D141: FORMA TABUA PARA CONCRETO EM FUNDACAO C/ REAPROVEITAMENTO 5X | E141: M2 | F141: 1.3 | G141: 36.66 | I141: =LEFT(TEXT(Tabela_DadosExternos_1[[#This Row],[ITEM ]],"00\.00\.00"),2) -> 07
A142: 70107 | B142: SINAPI | C142: 92792 | D142: CORTE E DOBRA DE AÇO CA-50, DIÂMETRO DE 6.3 MM, UTILIZADO EM ESTRUTURAS DIVERSAS, EXCETO LAJES | E142: KG | F142: 6.3 | G142: 46.49 | I142: =LEFT(TEXT(Tabela_DadosExternos_1[[#This Row],[ITEM ]],"00\.00\.00"),2) -> 07
A143: 70108 | B143: CPOS | C143: 11.01.160 | D143: CONCRETO USINADO, FCK = 30,0 MPA | E143: M3 | F143: 1.2 | G143: 342.3 | I143: =LEFT(TEXT(Tabela_DadosExternos_1[[#This Row],[ITEM ]],"00\.00\.00"),2) -> 07
A144: 80000 | B144: . | C144: . | D144: PÓRTICO | I144: =LEFT(TEXT(Tabela_DadosExternos_1[[#This Row],[ITEM ]],"00\.00\.00"),2) -> 08
A145: 80100 | B145: . | C145: . | D145: REVESTIMENTO | I145: =LEFT(TEXT(Tabela_DadosExternos_1[[#This Row],[ITEM ]],"00\.00\.00"),2) -> 08
A146: 80101 | B146: CPOS | C146: 15.03.110 | D146: FORNECIMENTO E MONTAGEM DE ESTRUTURA EM AÇO PATINÁVEL, SEM PINTURA | E146: KG | F146: 0 | G146: 0 | I146: =LEFT(TEXT(Tabela_DadosExternos_1[[#This Row],[ITEM ]],"00\.00\.00"),2) -> 08
A147: 80102 | B147: CPOS | C147: 21.03.010 | D147: REVESTIMENTO EM AÇO INOXIDÁVEL AISI 304, LIGA 18,8, CHAPA 20, COM ESPESSURA DE 1 MM, ACABAMENTO ESCOVADO COM GRANA ESPECIAL (CONFORME PROJETO) | E147: M2 | F147: 0 | G147: 0 | I147: =LEFT(TEXT(Tabela_DadosExternos_1[[#This Row],[ITEM ]],"00\.00\.00"),2) -> 08
A148: 80103 | B148: CPOS | C148: 33.07.130 | D148: PINTURA EPÓXI BICOMPONENTE EM ESTRUTURAS METÁLICAS | E148: M2 | F148: 0 | G148: 0 | I148: =LEFT(TEXT(Tabela_DadosExternos_1[[#This Row],[ITEM ]],"00\.00\.00"),2) -> 08
A149: 90000 | B149: . | C149: . | D149: PAREDES E PAINÉIS | I149: =LEFT(TEXT(Tabela_DadosExternos_1[[#This Row],[ITEM ]],"00\.00\.00"),2) -> 09
A150: 90100 | B150: . | C150: . | D150: ALVENARIA DE DIVISA | I150: =LEFT(TEXT(Tabela_DadosExternos_1[[#This Row],[ITEM ]],"00\.00\.00"),2) -> 09
A151: 90101 | B151: SINAPI | C151: 87456 | D151: ALVENARIA DE VEDAÇÃO DE BLOCOS VAZADOS DE CONCRETO DE 14X19X39CM (ESPESSURA 14CM) DE PAREDES COM ÁREA LÍQUIDA MAIOR OU IGUAL A 6M2 SEM VÃOS E ARGAMASSA DE ASSENTAMENTO COM PREPARO MANUAL. AF_06/201 | E151: M2 | F151: 112.5 | G151: 5819.63 | I151: =LEFT(TEXT(Tabela_DadosExternos_1[[#This Row],[ITEM ]],"00\.00\.00"),2) -> 09
A152: 90102 | B152: SINAPI | C152: 94231 | D152: RUFO EM CHAPA DE ACO GALVANIZADO NUMERO 24, DESENVOLVIMENTO DE 25CM | E152: M | F152: 750 | G152: 15787.5 | I152: =LEFT(TEXT(Tabela_DadosExternos_1[[#This Row],[ITEM ]],"00\.00\.00"),2) -> 09
A153: 90103 | B153: SINAPI | C153: 88428 | D153: APLICAÇÃO MANUAL DE PINTURA COM TINTA TEXTURIZADA ACRÍLICA EM SUPERFÍC IES EXTERNAS DE SACADA DE EDIFÍCIOS DE MÚLTIPLOS PAVIMENTOS, DUAS CORE S | E153: M2 | F153: 1200 | G153: 26436 | I153: =LEFT(TEXT(Tabela_DadosExternos_1[[#This Row],[ITEM ]],"00\.00\.00"),2) -> 09
A154: 90200 | B154: . | C154: . | D154: GESSO ACARTONADO E PAINÉIS DIVISÓRIOS - ZETA | I154: =LEFT(TEXT(Tabela_DadosExternos_1[[#This Row],[ITEM ]],"00\.00\.00"),2) -> 09
A155: 90201 | B155: CPOS | C155: 14.30.160 | D155: DIVISÓRIA EM PLACAS DE GESSO ACARTONADO, RESITÊNCIA AO FOGO 60 MINUTOS, ESPESSURA 120/90MM - 1RF / 1RF LM | E155: M2 | F155: 1.7 | G155: 235.03 | I155: =LEFT(TEXT(Tabela_DadosExternos_1[[#This Row],[ITEM ]],"00\.00\.00"),2) -> 09
A156: 100000 | B156: . | C156: . | D156: ESQUADRIAS | I156: =LEFT(TEXT(Tabela_DadosExternos_1[[#This Row],[ITEM ]],"00\.00\.00"),2) -> 10
A157: 100100 | B157: . | C157: . | D157: ESQUADRIAS DE MADEIRA | I157: =LEFT(TEXT(Tabela_DadosExternos_1[[#This Row],[ITEM ]],"00\.00\.00"),2) -> 10
A158: 100101 | B158: CPOS | C158: 23.02.050 | D158: PORTA MACHO E FÊMEA COM BATENTE DE MADEIRA - 92 X 210 CM | E158: UN | F158: 6 | G158: 3777 | I158: =LEFT(TEXT(Tabela_DadosExternos_1[[#This Row],[ITEM ]],"00\.00\.00"),2) -> 10
A159: 100102 | B159: SIURB | C159: 70175 | D159: VISOR FIXO COM VIDRO E REQUADRO DE MADEIRA PARA PORTA | E159: UN | F159: 1 | G159: 128.23 | I159: =LEFT(TEXT(Tabela_DadosExternos_1[[#This Row],[ITEM ]],"00\.00\.00"),2) -> 10
A160: 100103 | B160: CPOS | C160: 23.02.550 | D160: PORTA MACHO E FÊMEA COM BATENTE METÁLICO - 124 X 210 CM | E160: UN | F160: 3 | G160: 3774.75 | I160: =LEFT(TEXT(Tabela_DadosExternos_1[[#This Row],[ITEM ]],"00\.00\.00"),2) -> 10
A161: 100104 | B161: CPOS | C161: 28.20.413 | D161: DOBRADIÇA EM LATÃO CROMADO REFORÇADA DE 3 X 1/2", PARA PORTA DE ATÉ 35 KG | E161: UN | F161: 18 | G161: 610.02 | I161: =LEFT(TEXT(Tabela_DadosExternos_1[[#This Row],[ITEM ]],"00\.00\.00"),2) -> 10
A162: 100105 | B162: SIURB | C162: 70228 | D162: FECHADURA TIPO SÓ TRINCO (45MM) - TRÁFEGO INTENSO, MAÇANETA EM ZAMAC, GUARNIÇÕES EM AÇO, ACABAMENTO CROMADO BRILHANTE - PORTA DE ABRIR | E162: UN | F162: 6 | G162: 750.9 | I162: =LEFT(TEXT(Tabela_DadosExternos_1[[#This Row],[ITEM ]],"00\.00\.00"),2) -> 10
A163: 100200 | B163: . | C163: . | D163: ESQUADRIAS METÁLICAS - ALUMINIO SÉRIE 30 E 25, CONFORME PROJETO | I163: =LEFT(TEXT(Tabela_DadosExternos_1[[#This Row],[ITEM ]],"00\.00\.00"),2) -> 10
A164: 100201 | B164: CPOS | C164: 25.01.470 | D164: CAIXILHO FIXO TIPO VENEZIANA EM ALUMÍNIO ANODIZADO, SOB MEDIDA - BRANCO | E164: M2 | F164: 13.31 | G164: 7107.54 | I164: =LEFT(TEXT(Tabela_DadosExternos_1[[#This Row],[ITEM ]],"00\.00\.00"),2) -> 10
A165: 100202 | B165: SINAPI | C165: 85010 | D165: CAIXILHO FIXO, DE ALUMINIO, PARA VIDRO | E165: M2 | F165: 368.72 | G165: 131127.89 | I165: =LEFT(TEXT(Tabela_DadosExternos_1[[#This Row],[ITEM ]],"00\.00\.00"),2) -> 10
A166: 100203 | B166: SINAPI | C166: 84889 | D166: PUXADOR CENTRAL PARA ESQUADRIA DE ALUMINIO | E166: UN | F166: 308 | G166: 5199.04 | I166: =LEFT(TEXT(Tabela_DadosExternos_1[[#This Row],[ITEM ]],"00\.00\.00"),2) -> 10
A167: 100204 | B167: CPU | C167: 003 | D167: GUARNICAO/MOLDURA DE ACABAMENTO PARA ESQUADRIA DE ALUMINIO ANODIZADO NATURAL | E167: UN | F167: 779.35 | G167: 85572.63 | I167: =LEFT(TEXT(Tabela_DadosExternos_1[[#This Row],[ITEM ]],"00\.00\.00"),2) -> 10
A168: 100300 | B168: . | C168: . | D168: ESQUADRIAS METÁLICAS - AÇO GALVANIZADO | I168: =LEFT(TEXT(Tabela_DadosExternos_1[[#This Row],[ITEM ]],"00\.00\.00"),2) -> 10
A169: 100301 | B169: SINAPI | C169: 74073/002 | D169: ALCAPAO EM FERRO 70X70CM, INCLUSO FERRAGENS | E169: UN | F169: 3 | G169: 281.97 | I169: =LEFT(TEXT(Tabela_DadosExternos_1[[#This Row],[ITEM ]],"00\.00\.00"),2) -> 10
A170: 100302 | B170: SIURB | C170: 170524 | D170: DP.04 - CORRIMÃO EM TUBO GALVANIZADO | E170: M | F170: 159.5 | G170: 6963.77 | I170: =LEFT(TEXT(Tabela_DadosExternos_1[[#This Row],[ITEM ]],"00\.00\.00"),2) -> 10
A171: 100303 | B171: SINAPI | C171: 73631 | D171: GUARDA-CORPO EM TUBO DE ACO GALVANIZADO 1 1/2" CONFORME PROJETO) | E171: M | F171: 1.89 | G171: 545.51 | I171: =LEFT(TEXT(Tabela_DadosExternos_1[[#This Row],[ITEM ]],"00\.00\.00"),2) -> 10
A172: 100304 | B172: CPOS | C172: 34.05.290 | D172: PORTÃO DE ABRIR EM GRADE DE AÇO GALVANIZADO ELETROFUNDIDA (PORTA ZETA - CONFORME PROJETO) | E172: M2 | F172: 46.25 | G172: 52866.99 | I172: =LEFT(TEXT(Tabela_DadosExternos_1[[#This Row],[ITEM ]],"00\.00\.00"),2) -> 10
A173: 100305 | B173: DNIT | C173: 4S0600001 | D173: DEFENSA MALEÁVEL SIMPLES (FORN./ IMPL.) | E173: M | F173: 1.5 | G173: 487.32 | I173: =LEFT(TEXT(Tabela_DadosExternos_1[[#This Row],[ITEM ]],"00\.00\.00"),2) -> 10
A174: 100400 | B174: . | C174: . | D174: VIDROS | I174: =LEFT(TEXT(Tabela_DadosExternos_1[[#This Row],[ITEM ]],"00\.00\.00"),2) -> 10
A175: 100401 | B175: SINAPI | C175: 72117 | D175: VIDRO LISO COMUM TRANSPARENTE, ESPESSURA 4MM | E175: M2 | F175: 44.226 | G175: 4823.73 | I175: =LEFT(TEXT(Tabela_DadosExternos_1[[#This Row],[ITEM ]],"00\.00\.00"),2) -> 10
A176: 100402 | B176: CPOS | C176: 26.01.120 | D176: VIDRO LISO LAMINADO INCOLOR DE 6 MM | E176: M2 | F176: 1197.8461 | G176: 218415.26 | I176: =LEFT(TEXT(Tabela_DadosExternos_1[[#This Row],[ITEM ]],"00\.00\.00"),2) -> 10
A177: 100500 | B177: . | C177: . | D177: BRISE | I177: =LEFT(TEXT(Tabela_DadosExternos_1[[#This Row],[ITEM ]],"00\.00\.00"),2) -> 10
A178: 100501 | B178: CPU | C178: 002 | D178: BRISE HUNTER DOUGLAS MODELO BRISECELL 100X100 EM ALUZINC, INSTALADO TRAVÉS DE ESTRUTURA AUXILIAR E ACESSÓRIOS DE FIXAÇÃO | E178: M2 | F178: 820 | G178: 589629.2 | I178: =LEFT(TEXT(Tabela_DadosExternos_1[[#This Row],[ITEM ]],"00\.00\.00"),2) -> 10
A179: 100502 | B179: CPOS | C179: 22.06.210 | D179: BRISE METÁLICO FIXO EM CHAPA MICROPERFURADA ALUZINC PRÉ-PINTADA | E179: M2 | F179: 47.84 | G179: 13793.71 | I179: =LEFT(TEXT(Tabela_DadosExternos_1[[#This Row],[ITEM ]],"00\.00\.00"),2) -> 10
A180: 110000 | B180: . | C180: . | D180: COBERTURA | I180: =LEFT(TEXT(Tabela_DadosExternos_1[[#This Row],[ITEM ]],"00\.00\.00"),2) -> 11
A181: 110100 | B181: . | C181: . | D181: TELHAMENTO E CALHA - COBERTURA ZETA | I181: =LEFT(TEXT(Tabela_DadosExternos_1[[#This Row],[ITEM ]],"00\.00\.00"),2) -> 11
A182: 110101 | B182: CPOS | C182: 16.33.040 | D182: CALHA, RUFO, AFINS EM CHAPA GALVANIZADA Nº 24 - CORTE 0,50 M | E182: M | F182: 166.32 | G182: 13137.62 | I182: =LEFT(TEXT(Tabela_DadosExternos_1[[#This Row],[ITEM ]],"00\.00\.00"),2) -> 11
A183: 120000 | B183: . | C183: . | D183: IMPERMEABILIZAÇÃO | I183: =LEFT(TEXT(Tabela_DadosExternos_1[[#This Row],[ITEM ]],"00\.00\.00"),2) -> 12
A184: 120100 | B184: . | C184: . | D184: IMPERMEABILIZAÇÃO - COBERTURA ZETA | I184: =LEFT(TEXT(Tabela_DadosExternos_1[[#This Row],[ITEM ]],"00\.00\.00"),2) -> 12
A185: 120101 | B185: CPOS | C185: 32.15.240 | D185: IMPERMEABILIZAÇÃO COM MANTA ASFÁLTICA TIPO III, ANTI RAIZ, ESPESSURA DE 4 MM | E185: M2 | F185: 1455.7 | G185: 150970.65 | I185: =LEFT(TEXT(Tabela_DadosExternos_1[[#This Row],[ITEM ]],"00\.00\.00"),2) -> 12
A186: 120102 | B186: CPOS | C186: 17.01.020 | D186: ARGAMASSA DE REGULARIZAÇÃO E/OU PROTEÇÃO | E186: M3 | F186: 72.785 | G186: 34686.42 | I186: =LEFT(TEXT(Tabela_DadosExternos_1[[#This Row],[ITEM ]],"00\.00\.00"),2) -> 12
A187: 130000 | B187: . | C187: . | D187: FORRO | I187: =LEFT(TEXT(Tabela_DadosExternos_1[[#This Row],[ITEM ]],"00\.00\.00"),2) -> 13
A188: 130100 | B188: . | C188: . | D188: FORRO - ZETA | I188: =LEFT(TEXT(Tabela_DadosExternos_1[[#This Row],[ITEM ]],"00\.00\.00"),2) -> 13
A189: 130101 | B189: CPOS | C189: 22.02.030 | D189: FORRO EM PAINÉIS DE GESSO ACARTONADO, COM ESPESSURA DE 12,5 MM, FIXO | E189: M2 | F189: 5.58 | G189: 344.73 | I189: =LEFT(TEXT(Tabela_DadosExternos_1[[#This Row],[ITEM ]],"00\.00\.00"),2) -> 13
A190: 130102 | B190: CPOS | C190: 22.03.030 | D190: FORRO EM FIBRA MINERAL ACÚSTICO, REVESTIDO EM LÁTEX | E190: M2 | F190: 8.85 | G190: 670.56 | I190: =LEFT(TEXT(Tabela_DadosExternos_1[[#This Row],[ITEM ]],"00\.00\.00"),2) -> 13
A191: 140000 | B191: . | C191: . | D191: REVESTIMENTOS | I191: =LEFT(TEXT(Tabela_DadosExternos_1[[#This Row],[ITEM ]],"00\.00\.00"),2) -> 14
A192: 140100 | B192: . | C192: . | D192: PISOS INTERNOS, SOLEIRAS E RODAPÉS | I192: =LEFT(TEXT(Tabela_DadosExternos_1[[#This Row],[ITEM ]],"00\.00\.00"),2) -> 14
A193: 140101 | B193: CPOS | C193: 03.03.060 | D193: DEMOLIÇÃO MANUAL DE REVESTIMENTO EM MASSA DE PISO | E193: M2 | F193: 254.01 | G193: 1531.68 | I193: =LEFT(TEXT(Tabela_DadosExternos_1[[#This Row],[ITEM ]],"00\.00\.00"),2) -> 14
A194: 140102 | B194: CPOS | C194: 05.07.050 | D194: REMOÇÃO DE ENTULHO DE OBRA COM CAÇAMBA METÁLICA - MATERIAL VOLUMOSO MISTURADO POR ALVENARIA, TERRA, MADEIRA, PAPEL, PLÁSTICO E METAL | E194: M3 | F194: 30.302 | G194: 2491.43 | I194: =LEFT(TEXT(Tabela_DadosExternos_1[[#This Row],[ITEM ]],"00\.00\.00"),2) -> 14
A195: 140103 | B195: CPOS | C195: 32.15.240 | D195: IMPERMEABILIZAÇÃO COM MANTA ASFÁLTICA TIPO III, ANTI RAIZ, ESPESSURA DE 4 MM | E195: M2 | F195: 151.51 | G195: 15713.1 | I195: =LEFT(TEXT(Tabela_DadosExternos_1[[#This Row],[ITEM ]],"00\.00\.00"),2) -> 14
A196: 140104 | B196: CPOS | C196: 17.01.020 | D196: ARGAMASSA DE REGULARIZAÇÃO E/OU PROTEÇÃO | E196: M3 | F196: 9.09 | G196: 4322.84 | I196: =LEFT(TEXT(Tabela_DadosExternos_1[[#This Row],[ITEM ]],"00\.00\.00"),2) -> 14
A197: 140105 | B197: CPOS | C197: 18.07.010 | D197: PISO CERÂMICO NÃO ESMALTADO EXTRUDADO ALTA RESISTÊNCIA QUÍMICA E MECÂNICA, ESPESSURA DE 9 MM, ASSENTADO COM ARGAMASSA DE CIMENTO E AREIA (PISO GAIL CONFORME PROJETO) | E197: M2 | F197: 151.51 | G197: 14234.36 | I197: =LEFT(TEXT(Tabela_DadosExternos_1[[#This Row],[ITEM ]],"00\.00\.00"),2) -> 14
A198: 140106 | B198: CPU | C198: 001 | D198: PISO ELEVADO TIPO TELESCÓPIO EM CHAPA DE AÇO COM REVESTIMENTO DE LAMINADO MELAMÍNICO | E198: M2 | F198: 70 | G198: 17749.2 | I198: =LEFT(TEXT(Tabela_DadosExternos_1[[#This Row],[ITEM ]],"00\.00\.00"),2) -> 14
A199: 140107 | B199: SINAPI | C199: 72189 | D199: RODAPE VINILICO ALTURA 5CM, ESPESSURA 1MM, FIXADO COM COLA | E199: M | F199: 10 | G199: 199.8 | I199: =LEFT(TEXT(Tabela_DadosExternos_1[[#This Row],[ITEM ]],"00\.00\.00"),2) -> 14
A200: 140108 | B200: CPOS | C200: 18.06.010 | D200: PISO CERÂMICO ESMALTADO PEI-4 RESISTÊNCIA QUÍMICA A, PARA ÁREAS INTERNAS SUJEITAS À LAVAGEM FREQUENTE, ASSENTADO COM ARGAMASSA MISTA | E200: M2 | F200: 6.9325 | G200: 476.19 | I200: =LEFT(TEXT(Tabela_DadosExternos_1[[#This Row],[ITEM ]],"00\.00\.00"),2) -> 14
... 577 more rows

Sheet Modelo de Cronograma
F2: CONCLUSÃO DAS OBRAS DE EDIFICAÇÃO E INFRAESTRUTURA DO CAMPUS SÃO BERNARDO DO CAMPO
F5: ANEXO V - MODELO DE CRONOGRAMA FÍSICO-FINANCEIRO
C6: ITEM | D6: REFERÊNCIA | F6: DESCRIÇÃO DOS SERVIÇOS | G6: UNID | I6: CONTRATO | K6: CONTRATO | M6: 1 | N6: 2 | P6: 1 | Q6: 2 | S6: 1 | T6: 2 | V6: 1 | W6: 2 | Y6: 1 | Z6: 2 | AB6: 1 | AC6: 2 | AE6: 1 | AF6: 2 | AH6: 1 | AI6: 2 | AK6: 1 | AL6: 2 | AN6: 1 | AO6: 2 | AQ6: 1 | AR6: 2 | AT6: 1 | AW6: 1 | AZ6: 1 | BC6: 1 | BF6: 1 | BI6: 1 | BL6: 1 | BO6: 1 | BR6: 1 | BU6: 1 | BX6: 1 | CA6: 1 | CD6: 1
I7: QUANTIDADE | J7: CUSTO (R$) | K7: CUSTO | M7: 1 | P7: =M7+1 -> 2 | S7: =P7+1 -> 3 | V7: =S7+1 -> 4 | Y7: =V7+1 -> 5 | AB7: =Y7+1 -> 6 | AE7: =AB7+1 -> 7 | AH7: =AE7+1 -> 8 | AK7: =AH7+1 -> 9 | AN7: =AK7+1 -> 10 | AQ7: =AN7+1 -> 11 | AT7: =AQ7+1 -> 12 | AW7: =AT7+1 -> 13 | AZ7: =AW7+1 -> 14 | BC7: =AZ7+1 -> 15 | BF7: =BC7+1 -> 16 | BI7: =BF7+1 -> 17 | BL7: =BI7+1 -> 18 | BO7: =BL7+1 -> 19 | BR7: =BO7+1 -> 20 | BU7: =BR7+1 -> 21 | BX7: =BU7+1 -> 22 | CA7: =BX7+1 -> 23 | CD7: =CA7+1 -> 24 | CG7: TOTAL
J8: UNITÁRIO | K8: TOTAL | M8: CUSTO (R$) | N8: % | P8: CUSTO (R$) | Q8: % | S8: CUSTO (R$) | T8: % | V8: CUSTO (R$) | W8: % | Y8: CUSTO (R$) | Z8: % | AB8: CUSTO (R$) | AC8: % | AE8: CUSTO (R$) | AF8: % | AH8: CUSTO (R$) | AI8: % | AK8: CUSTO (R$) | AL8: % | AN8: CUSTO (R$) | AO8: % | AQ8: CUSTO (R$) | AR8: % | AT8: CUSTO (R$) | AU8: % | AW8: CUSTO (R$) | AX8: % | AZ8: CUSTO (R$) | BA8: % | BC8: CUSTO (R$) | BD8: % | BF8: CUSTO (R$) | BG8: % | BI8: CUSTO (R$) | BJ8: % | BL8: CUSTO (R$) | BM8: % | BO8: CUSTO (R$) | BP8: % | BR8: CUSTO (R$) | BS8: % | BU8: CUSTO (R$) | BV8: % | BX8: CUSTO (R$) | BY8: % | CA8: CUSTO (R$) | CB8: % | CD8: CUSTO (R$) | CE8: % | CG8: CUSTO (R$) | CH8: %
I9: 1
A10: =A9+1 -> 1 | C10: 10000 | D10: . | E10: . | F10: =VLOOKUP(C10,Orc,4) -> CANTEIRO DE OBRAS | I10: . | M10: =IF(N12=0,0,N12) -> 0 | P10: =IF(Q12=0,M10,M10+Q12) -> 0 | S10: =IF(T12=0,P10,P10+T12) -> 0 | V10: =IF(W12=0,S10,S10+W12) -> 0 | Y10: =IF(Z12=0,V10,V10+Z12) -> 0 | AB10: =IF(AC12=0,Y10,Y10+AC12) -> 0 | AE10: =IF(AF12=0,AB10,AB10+AF12) -> 0 | AH10: =IF(AI12=0,AE10,AE10+AI12) -> 0 | AK10: =IF(AL12=0,AH10,AH10+AL12) -> 0 | AN10: =IF(AO12=0,AK10,AK10+AO12) -> 0 | AQ10: =IF(AR12=0,AN10,AN10+AR12) -> 0 | AT10: =IF(AU12=0,AQ10,AQ10+AU12) -> 0 | AW10: =IF(AX12=0,AT10,AT10+AX12) -> 0 | AZ10: =IF(BA12=0,AW10,AW10+BA12) -> 0 | BC10: =IF(BD12=0,AZ10,AZ10+BD12) -> 0 | BF10: =IF(BG12=0,BC10,BC10+BG12) -> 0 | BI10: =IF(BJ12=0,BF10,BF10+BJ12) -> 0 | BL10: =IF(BM12=0,BI10,BI10+BM12) -> 0 | BO10: =IF(BP12=0,BL10,BL10+BP12) -> 0 | BR10: =IF(BS12=0,BO10,BO10+BS12) -> 0 | BU10: =IF(BV12=0,BR10,BR10+BV12) -> 0 | BX10: =IF(BY12=0,BU10,BU10+BY12) -> 0 | CA10: =IF(CB12=0,BX10,BX10+CB12) -> 0 | CD10: =IF(CE12=0,CA10,CA10+CE12) -> 0 | CG10: =IFERROR(CG12/K12,0) -> 0
C11: . | E11: 0 | I11: .
A12: =#REF!+1 ->  | C12: $ | D12: =F12 -> 10000 | E12: $$ | F12: =C10 -> 10000 | I12: . | K12: 0 | M12: =ROUND(N12*$K12,2) -> 0 | P12: =ROUND(Q12*$K12,2) -> 0 | S12: =ROUND(T12*$K12,2) -> 0 | V12: =ROUND(W12*$K12,2) -> 0 | Y12: =ROUND(Z12*$K12,2) -> 0 | AB12: =ROUND(AC12*$K12,2) -> 0 | AE12: =ROUND(AF12*$K12,2) -> 0 | AH12: =ROUND(AI12*$K12,2) -> 0 | AK12: =ROUND(AL12*$K12,2) -> 0 | AN12: =ROUND(AO12*$K12,2) -> 0 | AQ12: =ROUND(AR12*$K12,2) -> 0 | AT12: =ROUND(AU12*$K12,2) -> 0 | AW12: =ROUND(AX12*$K12,2) -> 0 | AZ12: =ROUND(BA12*$K12,2) -> 0 | BC12: =ROUND(BD12*$K12,2) -> 0 | BF12: =ROUND(BG12*$K12,2) -> 0 | BI12: =ROUND(BJ12*$K12,2) -> 0 | BL12: =ROUND(BM12*$K12,2) -> 0 | BO12: =ROUND(BP12*$K12,2) -> 0 | BR12: =ROUND(BS12*$K12,2) -> 0 | BU12: =ROUND(BV12*$K12,2) -> 0 | BX12: =ROUND(BY12*$K12,2) -> 0 | CA12: =ROUND(CB12*$K12,2) -> 0 | CD12: =ROUND(CE12*$K12,2) -> 0 | CG12: =SUMIF(L$6:CF$6,"=1",$L12:$CF12) -> 0 | CJ12: =K12-CG12 -> 0
A13: =A12+1 ->  | C13: .
A14: =A13+1 ->  | C14: =C10+10000 -> 20000 | D14: . | E14: . | F14: =VLOOKUP(C14,Orc,4) -> PROJETOS EXECUTIVOS | I14: . | M14: =IF(N16=0,0,N16) -> 0 | P14: =IF(Q16=0,M14,M14+Q16) -> 0 | S14: =IF(T16=0,P14,P14+T16) -> 0 | V14: =IF(W16=0,S14,S14+W16) -> 0 | Y14: =IF(Z16=0,V14,V14+Z16) -> 0 | AB14: =IF(AC16=0,Y14,Y14+AC16) -> 0 | AE14: =IF(AF16=0,AB14,AB14+AF16) -> 0 | AH14: =IF(AI16=0,AE14,AE14+AI16) -> 0 | AK14: =IF(AL16=0,AH14,AH14+AL16) -> 0 | AN14: =IF(AO16=0,AK14,AK14+AO16) -> 0 | AQ14: =IF(AR16=0,AN14,AN14+AR16) -> 0 | AT14: =IF(AU16=0,AQ14,AQ14+AU16) -> 0 | AW14: =IF(AX16=0,AT14,AT14+AX16) -> 0 | AZ14: =IF(BA16=0,AW14,AW14+BA16) -> 0 | BC14: =IF(BD16=0,AZ14,AZ14+BD16) -> 0 | BF14: =IF(BG16=0,BC14,BC14+BG16) -> 0 | BI14: =IF(BJ16=0,BF14,BF14+BJ16) -> 0 | BL14: =IF(BM16=0,BI14,BI14+BM16) -> 0 | BO14: =IF(BP16=0,BL14,BL14+BP16) -> 0 | BR14: =IF(BS16=0,BO14,BO14+BS16) -> 0 | BU14: =IF(BV16=0,BR14,BR14+BV16) -> 0 | BX14: =IF(BY16=0,BU14,BU14+BY16) -> 0 | CA14: =IF(CB16=0,BX14,BX14+CB16) -> 0 | CD14: =IF(CE16=0,CA14,CA14+CE16) -> 0 | CG14: =IFERROR(CG16/K16,0) -> 0
E15: 0 | I15: .
A16: =#REF!+1 ->  | C16: $ | D16: =F16 -> 20000 | E16: $$ | F16: =C14 -> 20000 | I16: . | K16: 0 | M16: =ROUND(N16*$K16,2) -> 0 | P16: =ROUND(Q16*$K16,2) -> 0 | R16: =ROUND(S16*$K16,2) -> 0 | T16: =ROUND(U16*$K16,2) -> 0 | V16: =ROUND(W16*$K16,2) -> 0 | X16: =ROUND(Y16*$K16,2) -> 0 | Z16: =ROUND(AA16*$K16,2) -> 0 | AB16: =ROUND(AC16*$K16,2) -> 0 | AD16: =ROUND(AE16*$K16,2) -> 0 | AF16: =ROUND(AG16*$K16,2) -> 0 | AH16: =ROUND(AI16*$K16,2) -> 0 | AJ16: =ROUND(AK16*$K16,2) -> 0 | AL16: =ROUND(AM16*$K16,2) -> 0 | AN16: =ROUND(AO16*$K16,2) -> 0 | AP16: =ROUND(AQ16*$K16,2) -> 0 | AR16: =ROUND(AS16*$K16,2) -> 0 | AT16: =ROUND(AU16*$K16,2) -> 0 | AV16: =ROUND(AW16*$K16,2) -> 0 | AX16: =ROUND(AY16*$K16,2) -> 0 | AZ16: =ROUND(BA16*$K16,2) -> 0 | BB16: =ROUND(BC16*$K16,2) -> 0 | BD16: =ROUND(BE16*$K16,2) -> 0 | BF16: =ROUND(BG16*$K16,2) -> 0 | BH16: =ROUND(BI16*$K16,2) -> 0 | BJ16: =ROUND(BK16*$K16,2) -> 0 | BL16: =ROUND(BM16*$K16,2) -> 0 | BN16: =ROUND(BO16*$K16,2) -> 0 | BP16: =ROUND(BQ16*$K16,2) -> 0 | BR16: =ROUND(BS16*$K16,2) -> 0 | BT16: =ROUND(BU16*$K16,2) -> 0 | BV16: =ROUND(BW16*$K16,2) -> 0 | BX16: =ROUND(BY16*$K16,2) -> 0 | BZ16: =ROUND(CA16*$K16,2) -> 0 | CB16: =ROUND(CC16*$K16,2) -> 0 | CD16: =ROUND(CE16*$K16,2) -> 0 | CG16: =SUMIF(L$6:CF$6,"=1",$L16:$CF16) -> 0 | CJ16: =K16-CG16 -> 0
A17: =A16+1 ->  | C17: .
A18: =A17+1 ->  | C18: =C14+10000 -> 30000 | D18: . | E18: . | F18: =VLOOKUP(C18,Orc,4) -> PAISAGISMO | I18: . | M18: =IF(N20=0,0,N20) -> 0 | P18: =IF(Q20=0,M18,M18+Q20) -> 0 | S18: =IF(T20=0,P18,P18+T20) -> 0 | V18: =IF(W20=0,S18,S18+W20) -> 0 | Y18: =IF(Z20=0,V18,V18+Z20) -> 0 | AB18: =IF(AC20=0,Y18,Y18+AC20) -> 0 | AE18: =IF(AF20=0,AB18,AB18+AF20) -> 0 | AH18: =IF(AI20=0,AE18,AE18+AI20) -> 0 | AK18: =IF(AL20=0,AH18,AH18+AL20) -> 0 | AN18: =IF(AO20=0,AK18,AK18+AO20) -> 0 | AQ18: =IF(AR20=0,AN18,AN18+AR20) -> 0 | AT18: =IF(AU20=0,AQ18,AQ18+AU20) -> 0 | AW18: =IF(AX20=0,AT18,AT18+AX20) -> 0 | AZ18: =IF(BA20=0,AW18,AW18+BA20) -> 0 | BC18: =IF(BD20=0,AZ18,AZ18+BD20) -> 0 | BF18: =IF(BG20=0,BC18,BC18+BG20) -> 0 | BI18: =IF(BJ20=0,BF18,BF18+BJ20) -> 0 | BL18: =IF(BM20=0,BI18,BI18+BM20) -> 0 | BO18: =IF(BP20=0,BL18,BL18+BP20) -> 0 | BR18: =IF(BS20=0,BO18,BO18+BS20) -> 0 | BU18: =IF(BV20=0,BR18,BR18+BV20) -> 0 | BX18: =IF(BY20=0,BU18,BU18+BY20) -> 0 | CA18: =IF(CB20=0,BX18,BX18+CB20) -> 0 | CD18: =IF(CE20=0,CA18,CA18+CE20) -> 0 | CG18: =IFERROR(CG20/K20,0) -> 0
E19: 0 | I19: .
A20: =#REF!+1 ->  | C20: $ | D20: =F20 -> 30000 | E20: $$ | F20: =C18 -> 30000 | I20: . | K20: 0 | M20: =ROUND(N20*$K20,2) -> 0 | P20: =ROUND(Q20*$K20,2) -> 0 | R20: =ROUND(S20*$K20,2) -> 0 | T20: =ROUND(U20*$K20,2) -> 0 | V20: =ROUND(W20*$K20,2) -> 0 | X20: =ROUND(Y20*$K20,2) -> 0 | Z20: =ROUND(AA20*$K20,2) -> 0 | AB20: =ROUND(AC20*$K20,2) -> 0 | AD20: =ROUND(AE20*$K20,2) -> 0 | AF20: =ROUND(AG20*$K20,2) -> 0 | AH20: =ROUND(AI20*$K20,2) -> 0 | AJ20: =ROUND(AK20*$K20,2) -> 0 | AL20: =ROUND(AM20*$K20,2) -> 0 | AN20: =ROUND(AO20*$K20,2) -> 0 | AP20: =ROUND(AQ20*$K20,2) -> 0 | AR20: =ROUND(AS20*$K20,2) -> 0 | AT20: =ROUND(AU20*$K20,2) -> 0 | AV20: =ROUND(AW20*$K20,2) -> 0 | AX20: =ROUND(AY20*$K20,2) -> 0 | AZ20: =ROUND(BA20*$K20,2) -> 0 | BB20: =ROUND(BC20*$K20,2) -> 0 | BD20: =ROUND(BE20*$K20,2) -> 0 | BF20: =ROUND(BG20*$K20,2) -> 0 | BH20: =ROUND(BI20*$K20,2) -> 0 | BJ20: =ROUND(BK20*$K20,2) -> 0 | BL20: =ROUND(BM20*$K20,2) -> 0 | BN20: =ROUND(BO20*$K20,2) -> 0 | BP20: =ROUND(BQ20*$K20,2) -> 0 | BR20: =ROUND(BS20*$K20,2) -> 0 | BT20: =ROUND(BU20*$K20,2) -> 0 | BV20: =ROUND(BW20*$K20,2) -> 0 | BX20: =ROUND(BY20*$K20,2) -> 0 | BZ20: =ROUND(CA20*$K20,2) -> 0 | CB20: =ROUND(CC20*$K20,2) -> 0 | CD20: =ROUND(CE20*$K20,2) -> 0 | CG20: =SUMIF(L$6:CF$6,"=1",$L20:$CF20) -> 0 | CJ20: =K20-CG20 -> 0
A21: =A20+1 -> 
A22: =A21+1 ->  | C22: =C18+10000 -> 40000 | D22: . | E22: . | F22: =VLOOKUP(C22,Orc,4) -> SERVIÇOS PRELIMINARES | I22: . | M22: =IF(N24=0,0,N24) -> 0 | P22: =IF(Q24=0,M22,M22+Q24) -> 0 | S22: =IF(T24=0,P22,P22+T24) -> 0 | V22: =IF(W24=0,S22,S22+W24) -> 0 | Y22: =IF(Z24=0,V22,V22+Z24) -> 0 | AB22: =IF(AC24=0,Y22,Y22+AC24) -> 0 | AE22: =IF(AF24=0,AB22,AB22+AF24) -> 0 | AH22: =IF(AI24=0,AE22,AE22+AI24) -> 0 | AK22: =IF(AL24=0,AH22,AH22+AL24) -> 0 | AN22: =IF(AO24=0,AK22,AK22+AO24) -> 0 | AQ22: =IF(AR24=0,AN22,AN22+AR24) -> 0 | AT22: =IF(AU24=0,AQ22,AQ22+AU24) -> 0 | AW22: =IF(AX24=0,AT22,AT22+AX24) -> 0 | AZ22: =IF(BA24=0,AW22,AW22+BA24) -> 0 | BC22: =IF(BD24=0,AZ22,AZ22+BD24) -> 0 | BF22: =IF(BG24=0,BC22,BC22+BG24) -> 0 | BI22: =IF(BJ24=0,BF22,BF22+BJ24) -> 0 | BL22: =IF(BM24=0,BI22,BI22+BM24) -> 0 | BO22: =IF(BP24=0,BL22,BL22+BP24) -> 0 | BR22: =IF(BS24=0,BO22,BO22+BS24) -> 0 | BU22: =IF(BV24=0,BR22,BR22+BV24) -> 0 | BX22: =IF(BY24=0,BU22,BU22+BY24) -> 0 | CA22: =IF(CB24=0,BX22,BX22+CB24) -> 0 | CD22: =IF(CE24=0,CA22,CA22+CE24) -> 0 | CG22: =IFERROR(CG24/K24,0) -> 0
C23: . | E23: 0 | I23: .
A24: =#REF!+1 ->  | C24: $ | D24: =F24 -> 40000 | E24: $$ | F24: =C22 -> 40000 | I24: . | K24: 0 | M24: =ROUND(N24*$K24,2) -> 0 | P24: =ROUND(Q24*$K24,2) -> 0 | R24: =ROUND(S24*$K24,2) -> 0 | T24: =ROUND(U24*$K24,2) -> 0 | V24: =ROUND(W24*$K24,2) -> 0 | X24: =ROUND(Y24*$K24,2) -> 0 | Z24: =ROUND(AA24*$K24,2) -> 0 | AB24: =ROUND(AC24*$K24,2) -> 0 | AD24: =ROUND(AE24*$K24,2) -> 0 | AF24: =ROUND(AG24*$K24,2) -> 0 | AH24: =ROUND(AI24*$K24,2) -> 0 | AJ24: =ROUND(AK24*$K24,2) -> 0 | AL24: =ROUND(AM24*$K24,2) -> 0 | AN24: =ROUND(AO24*$K24,2) -> 0 | AP24: =ROUND(AQ24*$K24,2) -> 0 | AR24: =ROUND(AS24*$K24,2) -> 0 | AT24: =ROUND(AU24*$K24,2) -> 0 | AV24: =ROUND(AW24*$K24,2) -> 0 | AX24: =ROUND(AY24*$K24,2) -> 0 | AZ24: =ROUND(BA24*$K24,2) -> 0 | BB24: =ROUND(BC24*$K24,2) -> 0 | BD24: =ROUND(BE24*$K24,2) -> 0 | BF24: =ROUND(BG24*$K24,2) -> 0 | BH24: =ROUND(BI24*$K24,2) -> 0 | BJ24: =ROUND(BK24*$K24,2) -> 0 | BL24: =ROUND(BM24*$K24,2) -> 0 | BN24: =ROUND(BO24*$K24,2) -> 0 | BP24: =ROUND(BQ24*$K24,2) -> 0 | BR24: =ROUND(BS24*$K24,2) -> 0 | BT24: =ROUND(BU24*$K24,2) -> 0 | BV24: =ROUND(BW24*$K24,2) -> 0 | BX24: =ROUND(BY24*$K24,2) -> 0 | BZ24: =ROUND(CA24*$K24,2) -> 0 | CB24: =ROUND(CC24*$K24,2) -> 0 | CD24: =ROUND(CE24*$K24,2) -> 0 | CG24: =SUMIF(L$6:CF$6,"=1",$L24:$CF24) -> 0 | CJ24: =K24-CG24 -> 0
A25: =A24+1 ->  | C25: .
A26: =A25+1 ->  | C26: =C22+10000 -> 50000 | D26: . | E26: . | F26: =VLOOKUP(C26,Orc,4) -> PAVIMENTAÇÃO | I26: . | M26: =IF(N28=0,0,N28) -> 0 | P26: =IF(Q28=0,M26,M26+Q28) -> 0 | S26: =IF(T28=0,P26,P26+T28) -> 0 | V26: =IF(W28=0,S26,S26+W28) -> 0 | Y26: =IF(Z28=0,V26,V26+Z28) -> 0 | AB26: =IF(AC28=0,Y26,Y26+AC28) -> 0 | AE26: =IF(AF28=0,AB26,AB26+AF28) -> 0 | AH26: =IF(AI28=0,AE26,AE26+AI28) -> 0 | AK26: =IF(AL28=0,AH26,AH26+AL28) -> 0 | AN26: =IF(AO28=0,AK26,AK26+AO28) -> 0 | AQ26: =IF(AR28=0,AN26,AN26+AR28) -> 0 | AT26: =IF(AU28=0,AQ26,AQ26+AU28) -> 0 | AW26: =IF(AX28=0,AT26,AT26+AX28) -> 0 | AZ26: =IF(BA28=0,AW26,AW26+BA28) -> 0 | BC26: =IF(BD28=0,AZ26,AZ26+BD28) -> 0 | BF26: =IF(BG28=0,BC26,BC26+BG28) -> 0 | BI26: =IF(BJ28=0,BF26,BF26+BJ28) -> 0 | BL26: =IF(BM28=0,BI26,BI26+BM28) -> 0 | BO26: =IF(BP28=0,BL26,BL26+BP28) -> 0 | BR26: =IF(BS28=0,BO26,BO26+BS28) -> 0 | BU26: =IF(BV28=0,BR26,BR26+BV28) -> 0 | BX26: =IF(BY28=0,BU26,BU26+BY28) -> 0 | CA26: =IF(CB28=0,BX26,BX26+CB28) -> 0 | CD26: =IF(CE28=0,CA26,CA26+CE28) -> 0 | CG26: =IFERROR(CG28/K28,0) -> 0
C27: . | E27: 0 | I27: .
A28: =#REF!+1 ->  | C28: $ | D28: =F28 -> 50000 | E28: $$ | F28: =C26 -> 50000 | I28: . | K28: 0 | M28: =ROUND(N28*$K28,2) -> 0 | P28: =ROUND(Q28*$K28,2) -> 0 | R28: =ROUND(S28*$K28,2) -> 0 | T28: =ROUND(U28*$K28,2) -> 0 | V28: =ROUND(W28*$K28,2) -> 0 | X28: =ROUND(Y28*$K28,2) -> 0 | Z28: =ROUND(AA28*$K28,2) -> 0 | AB28: =ROUND(AC28*$K28,2) -> 0 | AD28: =ROUND(AE28*$K28,2) -> 0 | AF28: =ROUND(AG28*$K28,2) -> 0 | AH28: =ROUND(AI28*$K28,2) -> 0 | AJ28: =ROUND(AK28*$K28,2) -> 0 | AL28: =ROUND(AM28*$K28,2) -> 0 | AN28: =ROUND(AO28*$K28,2) -> 0 | AP28: =ROUND(AQ28*$K28,2) -> 0 | AR28: =ROUND(AS28*$K28,2) -> 0 | AT28: =ROUND(AU28*$K28,2) -> 0 | AV28: =ROUND(AW28*$K28,2) -> 0 | AX28: =ROUND(AY28*$K28,2) -> 0 | AZ28: =ROUND(BA28*$K28,2) -> 0 | BB28: =ROUND(BC28*$K28,2) -> 0 | BD28: =ROUND(BE28*$K28,2) -> 0 | BF28: =ROUND(BG28*$K28,2) -> 0 | BH28: =ROUND(BI28*$K28,2) -> 0 | BJ28: =ROUND(BK28*$K28,2) -> 0 | BL28: =ROUND(BM28*$K28,2) -> 0 | BN28: =ROUND(BO28*$K28,2) -> 0 | BP28: =ROUND(BQ28*$K28,2) -> 0 | BR28: =ROUND(BS28*$K28,2) -> 0 | BT28: =ROUND(BU28*$K28,2) -> 0 | BV28: =ROUND(BW28*$K28,2) -> 0 | BX28: =ROUND(BY28*$K28,2) -> 0 | BZ28: =ROUND(CA28*$K28,2) -> 0 | CB28: =ROUND(CC28*$K28,2) -> 0 | CD28: =ROUND(CE28*$K28,2) -> 0 | CG28: =SUMIF(L$6:CF$6,"=1",$L28:$CF28) -> 0 | CJ28: =K28-CG28 -> 0
A29: =A28+1 ->  | C29: .
A30: =A29+1 ->  | C30: =C26+10000 -> 60000 | D30: . | E30: . | F30: =VLOOKUP(C30,Orc,4) -> PISOS EXTERNOS | I30: . | M30: =IF(N32=0,0,N32) -> 0 | P30: =IF(Q32=0,M30,M30+Q32) -> 0 | S30: =IF(T32=0,P30,P30+T32) -> 0 | V30: =IF(W32=0,S30,S30+W32) -> 0 | Y30: =IF(Z32=0,V30,V30+Z32) -> 0 | AB30: =IF(AC32=0,Y30,Y30+AC32) -> 0 | AE30: =IF(AF32=0,AB30,AB30+AF32) -> 0 | AH30: =IF(AI32=0,AE30,AE30+AI32) -> 0 | AK30: =IF(AL32=0,AH30,AH30+AL32) -> 0 | AN30: =IF(AO32=0,AK30,AK30+AO32) -> 0 | AQ30: =IF(AR32=0,AN30,AN30+AR32) -> 0 | AT30: =IF(AU32=0,AQ30,AQ30+AU32) -> 0 | AW30: =IF(AX32=0,AT30,AT30+AX32) -> 0 | AZ30: =IF(BA32=0,AW30,AW30+BA32) -> 0 | BC30: =IF(BD32=0,AZ30,AZ30+BD32) -> 0 | BF30: =IF(BG32=0,BC30,BC30+BG32) -> 0 | BI30: =IF(BJ32=0,BF30,BF30+BJ32) -> 0 | BL30: =IF(BM32=0,BI30,BI30+BM32) -> 0 | BO30: =IF(BP32=0,BL30,BL30+BP32) -> 0 | BR30: =IF(BS32=0,BO30,BO30+BS32) -> 0 | BU30: =IF(BV32=0,BR30,BR30+BV32) -> 0 | BX30: =IF(BY32=0,BU30,BU30+BY32) -> 0 | CA30: =IF(CB32=0,BX30,BX30+CB32) -> 0 | CD30: =IF(CE32=0,CA30,CA30+CE32) -> 0 | CG30: =IFERROR(CG32/K32,0) -> 0
C31: . | E31: 0 | I31: .
A32: =#REF!+1 ->  | C32: $ | D32: =F32 -> 60000 | E32: $$ | F32: =C30 -> 60000 | I32: . | K32: 0 | M32: =ROUND(N32*$K32,2) -> 0 | P32: =ROUND(Q32*$K32,2) -> 0 | R32: =ROUND(S32*$K32,2) -> 0 | T32: =ROUND(U32*$K32,2) -> 0 | V32: =ROUND(W32*$K32,2) -> 0 | X32: =ROUND(Y32*$K32,2) -> 0 | Z32: =ROUND(AA32*$K32,2) -> 0 | AB32: =ROUND(AC32*$K32,2) -> 0 | AD32: =ROUND(AE32*$K32,2) -> 0 | AF32: =ROUND(AG32*$K32,2) -> 0 | AH32: =ROUND(AI32*$K32,2) -> 0 | AJ32: =ROUND(AK32*$K32,2) -> 0 | AL32: =ROUND(AM32*$K32,2) -> 0 | AN32: =ROUND(AO32*$K32,2) -> 0 | AP32: =ROUND(AQ32*$K32,2) -> 0 | AR32: =ROUND(AS32*$K32,2) -> 0 | AT32: =ROUND(AU32*$K32,2) -> 0 | AV32: =ROUND(AW32*$K32,2) -> 0 | AX32: =ROUND(AY32*$K32,2) -> 0 | AZ32: =ROUND(BA32*$K32,2) -> 0 | BB32: =ROUND(BC32*$K32,2) -> 0 | BD32: =ROUND(BE32*$K32,2) -> 0 | BF32: =ROUND(BG32*$K32,2) -> 0 | BH32: =ROUND(BI32*$K32,2) -> 0 | BJ32: =ROUND(BK32*$K32,2) -> 0 | BL32: =ROUND(BM32*$K32,2) -> 0 | BN32: =ROUND(BO32*$K32,2) -> 0 | BP32: =ROUND(BQ32*$K32,2) -> 0 | BR32: =ROUND(BS32*$K32,2) -> 0 | BT32: =ROUND(BU32*$K32,2) -> 0 | BV32: =ROUND(BW32*$K32,2) -> 0 | BX32: =ROUND(BY32*$K32,2) -> 0 | BZ32: =ROUND(CA32*$K32,2) -> 0 | CB32: =ROUND(CC32*$K32,2) -> 0 | CD32: =ROUND(CE32*$K32,2) -> 0 | CG32: =SUMIF(L$6:CF$6,"=1",$L32:$CF32) -> 0 | CJ32: =K32-CG32 -> 0
A33: =#REF!+1 ->  | C33: .
A34: =A33+1 ->  | C34: =C30+10000 -> 70000 | D34: . | E34: . | F34: =VLOOKUP(C34,Orc,4) -> INFRA-ESTRUTURA | I34: . | M34: =IF(N36=0,0,N36) -> 0 | P34: =IF(Q36=0,M34,M34+Q36) -> 0 | S34: =IF(T36=0,P34,P34+T36) -> 0 | V34: =IF(W36=0,S34,S34+W36) -> 0 | Y34: =IF(Z36=0,V34,V34+Z36) -> 0 | AB34: =IF(AC36=0,Y34,Y34+AC36) -> 0 | AE34: =IF(AF36=0,AB34,AB34+AF36) -> 0 | AH34: =IF(AI36=0,AE34,AE34+AI36) -> 0 | AK34: =IF(AL36=0,AH34,AH34+AL36) -> 0 | AN34: =IF(AO36=0,AK34,AK34+AO36) -> 0 | AQ34: =IF(AR36=0,AN34,AN34+AR36) -> 0 | AT34: =IF(AU36=0,AQ34,AQ34+AU36) -> 0 | AW34: =IF(AX36=0,AT34,AT34+AX36) -> 0 | AZ34: =IF(BA36=0,AW34,AW34+BA36) -> 0 | BC34: =IF(BD36=0,AZ34,AZ34+BD36) -> 0 | BF34: =IF(BG36=0,BC34,BC34+BG36) -> 0 | BI34: =IF(BJ36=0,BF34,BF34+BJ36) -> 0 | BL34: =IF(BM36=0,BI34,BI34+BM36) -> 0 | BO34: =IF(BP36=0,BL34,BL34+BP36) -> 0 | BR34: =IF(BS36=0,BO34,BO34+BS36) -> 0 | BU34: =IF(BV36=0,BR34,BR34+BV36) -> 0 | BX34: =IF(BY36=0,BU34,BU34+BY36) -> 0 | CA34: =IF(CB36=0,BX34,BX34+CB36) -> 0 | CD34: =IF(CE36=0,CA34,CA34+CE36) -> 0 | CG34: =IFERROR(CG36/K36,0) -> 0
C35: . | E35: 0 | I35: .
A36: =#REF!+1 ->  | C36: $ | D36: =F36 -> 70000 | E36: $$ | F36: =C34 -> 70000 | I36: . | K36: 0 | M36: =ROUND(N36*$K36,2) -> 0 | P36: =ROUND(Q36*$K36,2) -> 0 | R36: =ROUND(S36*$K36,2) -> 0 | T36: =ROUND(U36*$K36,2) -> 0 | V36: =ROUND(W36*$K36,2) -> 0 | X36: =ROUND(Y36*$K36,2) -> 0 | Z36: =ROUND(AA36*$K36,2) -> 0 | AB36: =ROUND(AC36*$K36,2) -> 0 | AD36: =ROUND(AE36*$K36,2) -> 0 | AF36: =ROUND(AG36*$K36,2) -> 0 | AH36: =ROUND(AI36*$K36,2) -> 0 | AJ36: =ROUND(AK36*$K36,2) -> 0 | AL36: =ROUND(AM36*$K36,2) -> 0 | AN36: =ROUND(AO36*$K36,2) -> 0 | AP36: =ROUND(AQ36*$K36,2) -> 0 | AR36: =ROUND(AS36*$K36,2) -> 0 | AT36: =ROUND(AU36*$K36,2) -> 0 | AV36: =ROUND(AW36*$K36,2) -> 0 | AX36: =ROUND(AY36*$K36,2) -> 0 | AZ36: =ROUND(BA36*$K36,2) -> 0 | BB36: =ROUND(BC36*$K36,2) -> 0 | BD36: =ROUND(BE36*$K36,2) -> 0 | BF36: =ROUND(BG36*$K36,2) -> 0 | BH36: =ROUND(BI36*$K36,2) -> 0 | BJ36: =ROUND(BK36*$K36,2) -> 0 | BL36: =ROUND(BM36*$K36,2) -> 0 | BN36: =ROUND(BO36*$K36,2) -> 0 | BP36: =ROUND(BQ36*$K36,2) -> 0 | BR36: =ROUND(BS36*$K36,2) -> 0 | BT36: =ROUND(BU36*$K36,2) -> 0 | BV36: =ROUND(BW36*$K36,2) -> 0 | BX36: =ROUND(BY36*$K36,2) -> 0 | BZ36: =ROUND(CA36*$K36,2) -> 0 | CB36: =ROUND(CC36*$K36,2) -> 0 | CD36: =ROUND(CE36*$K36,2) -> 0 | CG36: =SUMIF(L$6:CF$6,"=1",$L36:$CF36) -> 0 | CJ36: =K36-CG36 -> 0
A37: =A36+1 -> 
A38: =A37+1 ->  | C38: =C34+10000 -> 80000 | D38: . | E38: . | F38: =VLOOKUP(C38,Orc,4) -> PÓRTICO | I38: . | M38: =IF(N40=0,0,N40) -> 0 | P38: =IF(Q40=0,M38,M38+Q40) -> 0 | S38: =IF(T40=0,P38,P38+T40) -> 0 | V38: =IF(W40=0,S38,S38+W40) -> 0 | Y38: =IF(Z40=0,V38,V38+Z40) -> 0 | AB38: =IF(AC40=0,Y38,Y38+AC40) -> 0 | AE38: =IF(AF40=0,AB38,AB38+AF40) -> 0 | AH38: =IF(AI40=0,AE38,AE38+AI40) -> 0 | AK38: =IF(AL40=0,AH38,AH38+AL40) -> 0 | AN38: =IF(AO40=0,AK38,AK38+AO40) -> 0 | AQ38: =IF(AR40=0,AN38,AN38+AR40) -> 0 | AT38: =IF(AU40=0,AQ38,AQ38+AU40) -> 0 | AW38: =IF(AX40=0,AT38,AT38+AX40) -> 0 | AZ38: =IF(BA40=0,AW38,AW38+BA40) -> 0 | BC38: =IF(BD40=0,AZ38,AZ38+BD40) -> 0 | BF38: =IF(BG40=0,BC38,BC38+BG40) -> 0 | BI38: =IF(BJ40=0,BF38,BF38+BJ40) -> 0 | BL38: =IF(BM40=0,BI38,BI38+BM40) -> 0 | BO38: =IF(BP40=0,BL38,BL38+BP40) -> 0 | BR38: =IF(BS40=0,BO38,BO38+BS40) -> 0 | BU38: =IF(BV40=0,BR38,BR38+BV40) -> 0 | BX38: =IF(BY40=0,BU38,BU38+BY40) -> 0 | CA38: =IF(CB40=0,BX38,BX38+CB40) -> 0 | CD38: =IF(CE40=0,CA38,CA38+CE40) -> 0 | CG38: =IFERROR(CG40/K40,0) -> 0
C39: . | E39: 0 | I39: .
A40: =#REF!+1 ->  | C40: $ | D40: =F40 -> 80000 | E40: $$ | F40: =C38 -> 80000 | I40: . | K40: 0 | M40: =ROUND(N40*$K40,2) -> 0 | P40: =ROUND(Q40*$K40,2) -> 0 | R40: =ROUND(S40*$K40,2) -> 0 | T40: =ROUND(U40*$K40,2) -> 0 | V40: =ROUND(W40*$K40,2) -> 0 | X40: =ROUND(Y40*$K40,2) -> 0 | Z40: =ROUND(AA40*$K40,2) -> 0 | AB40: =ROUND(AC40*$K40,2) -> 0 | AD40: =ROUND(AE40*$K40,2) -> 0 | AF40: =ROUND(AG40*$K40,2) -> 0 | AH40: =ROUND(AI40*$K40,2) -> 0 | AJ40: =ROUND(AK40*$K40,2) -> 0 | AL40: =ROUND(AM40*$K40,2) -> 0 | AN40: =ROUND(AO40*$K40,2) -> 0 | AP40: =ROUND(AQ40*$K40,2) -> 0 | AR40: =ROUND(AS40*$K40,2) -> 0 | AT40: =ROUND(AU40*$K40,2) -> 0 | AV40: =ROUND(AW40*$K40,2) -> 0 | AX40: =ROUND(AY40*$K40,2) -> 0 | AZ40: =ROUND(BA40*$K40,2) -> 0 | BB40: =ROUND(BC40*$K40,2) -> 0 | BD40: =ROUND(BE40*$K40,2) -> 0 | BF40: =ROUND(BG40*$K40,2) -> 0 | BH40: =ROUND(BI40*$K40,2) -> 0 | BJ40: =ROUND(BK40*$K40,2) -> 0 | BL40: =ROUND(BM40*$K40,2) -> 0 | BN40: =ROUND(BO40*$K40,2) -> 0 | BP40: =ROUND(BQ40*$K40,2) -> 0 | BR40: =ROUND(BS40*$K40,2) -> 0 | BT40: =ROUND(BU40*$K40,2) -> 0 | BV40: =ROUND(BW40*$K40,2) -> 0 | BX40: =ROUND(BY40*$K40,2) -> 0 | BZ40: =ROUND(CA40*$K40,2) -> 0 | CB40: =ROUND(CC40*$K40,2) -> 0 | CD40: =ROUND(CE40*$K40,2) -> 0 | CG40: =SUMIF(L$6:CF$6,"=1",$L40:$CF40) -> 0 | CJ40: =K40-CG40 -> 0
A41: =A40+1 ->  | C41: .
A42: =A41+1 ->  | C42: =C38+10000 -> 90000 | D42: . | E42: . | F42: =VLOOKUP(C42,Orc,4) -> PAREDES E PAINÉIS | I42: . | M42: =IF(N44=0,0,N44) -> 0 | P42: =IF(Q44=0,M42,M42+Q44) -> 0 | S42: =IF(T44=0,P42,P42+T44) -> 0 | V42: =IF(W44=0,S42,S42+W44) -> 0 | Y42: =IF(Z44=0,V42,V42+Z44) -> 0 | AB42: =IF(AC44=0,Y42,Y42+AC44) -> 0 | AE42: =IF(AF44=0,AB42,AB42+AF44) -> 0 | AH42: =IF(AI44=0,AE42,AE42+AI44) -> 0 | AK42: =IF(AL44=0,AH42,AH42+AL44) -> 0 | AN42: =IF(AO44=0,AK42,AK42+AO44) -> 0 | AQ42: =IF(AR44=0,AN42,AN42+AR44) -> 0 | AT42: =IF(AU44=0,AQ42,AQ42+AU44) -> 0 | AW42: =IF(AX44=0,AT42,AT42+AX44) -> 0 | AZ42: =IF(BA44=0,AW42,AW42+BA44) -> 0 | BC42: =IF(BD44=0,AZ42,AZ42+BD44) -> 0 | BF42: =IF(BG44=0,BC42,BC42+BG44) -> 0 | BI42: =IF(BJ44=0,BF42,BF42+BJ44) -> 0 | BL42: =IF(BM44=0,BI42,BI42+BM44) -> 0 | BO42: =IF(BP44=0,BL42,BL42+BP44) -> 0 | BR42: =IF(BS44=0,BO42,BO42+BS44) -> 0 | BU42: =IF(BV44=0,BR42,BR42+BV44) -> 0 | BX42: =IF(BY44=0,BU42,BU42+BY44) -> 0 | CA42: =IF(CB44=0,BX42,BX42+CB44) -> 0 | CD42: =IF(CE44=0,CA42,CA42+CE44) -> 0 | CG42: =IFERROR(CG44/K44,0) -> 0
C43: . | E43: 0 | I43: .
A44: =#REF!+1 ->  | C44: $ | D44: =F44 -> 90000 | E44: $$ | F44: =C42 -> 90000 | I44: . | K44: 0 | M44: =ROUND(N44*$K44,2) -> 0 | P44: =ROUND(Q44*$K44,2) -> 0 | R44: =ROUND(S44*$K44,2) -> 0 | T44: =ROUND(U44*$K44,2) -> 0 | V44: =ROUND(W44*$K44,2) -> 0 | X44: =ROUND(Y44*$K44,2) -> 0 | Z44: =ROUND(AA44*$K44,2) -> 0 | AB44: =ROUND(AC44*$K44,2) -> 0 | AD44: =ROUND(AE44*$K44,2) -> 0 | AF44: =ROUND(AG44*$K44,2) -> 0 | AH44: =ROUND(AI44*$K44,2) -> 0 | AJ44: =ROUND(AK44*$K44,2) -> 0 | AL44: =ROUND(AM44*$K44,2) -> 0 | AN44: =ROUND(AO44*$K44,2) -> 0 | AP44: =ROUND(AQ44*$K44,2) -> 0 | AR44: =ROUND(AS44*$K44,2) -> 0 | AT44: =ROUND(AU44*$K44,2) -> 0 | AV44: =ROUND(AW44*$K44,2) -> 0 | AX44: =ROUND(AY44*$K44,2) -> 0 | AZ44: =ROUND(BA44*$K44,2) -> 0 | BB44: =ROUND(BC44*$K44,2) -> 0 | BD44: =ROUND(BE44*$K44,2) -> 0 | BF44: =ROUND(BG44*$K44,2) -> 0 | BH44: =ROUND(BI44*$K44,2) -> 0 | BJ44: =ROUND(BK44*$K44,2) -> 0 | BL44: =ROUND(BM44*$K44,2) -> 0 | BN44: =ROUND(BO44*$K44,2) -> 0 | BP44: =ROUND(BQ44*$K44,2) -> 0 | BR44: =ROUND(BS44*$K44,2) -> 0 | BT44: =ROUND(BU44*$K44,2) -> 0 | BV44: =ROUND(BW44*$K44,2) -> 0 | BX44: =ROUND(BY44*$K44,2) -> 0 | BZ44: =ROUND(CA44*$K44,2) -> 0 | CB44: =ROUND(CC44*$K44,2) -> 0 | CD44: =ROUND(CE44*$K44,2) -> 0 | CG44: =SUMIF(L$6:CF$6,"=1",$L44:$CF44) -> 0 | CJ44: =K44-CG44 -> 0
A45: =A44+1 ->  | C45: .
A46: =A45+1 ->  | C46: =C42+10000 -> 100000 | D46: . | E46: . | F46: =VLOOKUP(C46,Orc,4) -> ESQUADRIAS | I46: . | M46: =IF(N48=0,0,N48) -> 0 | P46: =IF(Q48=0,M46,M46+Q48) -> 0 | S46: =IF(T48=0,P46,P46+T48) -> 0 | V46: =IF(W48=0,S46,S46+W48) -> 0 | Y46: =IF(Z48=0,V46,V46+Z48) -> 0 | AB46: =IF(AC48=0,Y46,Y46+AC48) -> 0 | AE46: =IF(AF48=0,AB46,AB46+AF48) -> 0 | AH46: =IF(AI48=0,AE46,AE46+AI48) -> 0 | AK46: =IF(AL48=0,AH46,AH46+AL48) -> 0 | AN46: =IF(AO48=0,AK46,AK46+AO48) -> 0 | AQ46: =IF(AR48=0,AN46,AN46+AR48) -> 0 | AT46: =IF(AU48=0,AQ46,AQ46+AU48) -> 0 | AW46: =IF(AX48=0,AT46,AT46+AX48) -> 0 | AZ46: =IF(BA48=0,AW46,AW46+BA48) -> 0 | BC46: =IF(BD48=0,AZ46,AZ46+BD48) -> 0 | BF46: =IF(BG48=0,BC46,BC46+BG48) -> 0 | BI46: =IF(BJ48=0,BF46,BF46+BJ48) -> 0 | BL46: =IF(BM48=0,BI46,BI46+BM48) -> 0 | BO46: =IF(BP48=0,BL46,BL46+BP48) -> 0 | BR46: =IF(BS48=0,BO46,BO46+BS48) -> 0 | BU46: =IF(BV48=0,BR46,BR46+BV48) -> 0 | BX46: =IF(BY48=0,BU46,BU46+BY48) -> 0 | CA46: =IF(CB48=0,BX46,BX46+CB48) -> 0 | CD46: =IF(CE48=0,CA46,CA46+CE48) -> 0 | CG46: =IFERROR(CG48/K48,0) -> 0
C47: . | E47: 0 | I47: .
A48: =#REF!+1 ->  | C48: $ | D48: =F48 -> 100000 | E48: $$ | F48: =C46 -> 100000 | I48: . | K48: 0 | M48: =ROUND(N48*$K48,2) -> 0 | P48: =ROUND(Q48*$K48,2) -> 0 | R48: =ROUND(S48*$K48,2) -> 0 | T48: =ROUND(U48*$K48,2) -> 0 | V48: =ROUND(W48*$K48,2) -> 0 | X48: =ROUND(Y48*$K48,2) -> 0 | Z48: =ROUND(AA48*$K48,2) -> 0 | AB48: =ROUND(AC48*$K48,2) -> 0 | AD48: =ROUND(AE48*$K48,2) -> 0 | AF48: =ROUND(AG48*$K48,2) -> 0 | AH48: =ROUND(AI48*$K48,2) -> 0 | AJ48: =ROUND(AK48*$K48,2) -> 0 | AL48: =ROUND(AM48*$K48,2) -> 0 | AN48: =ROUND(AO48*$K48,2) -> 0 | AP48: =ROUND(AQ48*$K48,2) -> 0 | AR48: =ROUND(AS48*$K48,2) -> 0 | AT48: =ROUND(AU48*$K48,2) -> 0 | AV48: =ROUND(AW48*$K48,2) -> 0 | AX48: =ROUND(AY48*$K48,2) -> 0 | AZ48: =ROUND(BA48*$K48,2) -> 0 | BB48: =ROUND(BC48*$K48,2) -> 0 | BD48: =ROUND(BE48*$K48,2) -> 0 | BF48: =ROUND(BG48*$K48,2) -> 0 | BH48: =ROUND(BI48*$K48,2) -> 0 | BJ48: =ROUND(BK48*$K48,2) -> 0 | BL48: =ROUND(BM48*$K48,2) -> 0 | BN48: =ROUND(BO48*$K48,2) -> 0 | BP48: =ROUND(BQ48*$K48,2) -> 0 | BR48: =ROUND(BS48*$K48,2) -> 0 | BT48: =ROUND(BU48*$K48,2) -> 0 | BV48: =ROUND(BW48*$K48,2) -> 0 | BX48: =ROUND(BY48*$K48,2) -> 0 | BZ48: =ROUND(CA48*$K48,2) -> 0 | CB48: =ROUND(CC48*$K48,2) -> 0 | CD48: =ROUND(CE48*$K48,2) -> 0 | CG48: =SUMIF(L$6:CF$6,"=1",$L48:$CF48) -> 0 | CJ48: =K48-CG48 -> 0
A49: =A48+1 ->  | C49: .
A50: =#REF!+1 ->  | C50: =C46+10000 -> 110000 | D50: . | E50: . | F50: =VLOOKUP(C50,Orc,4) -> COBERTURA | I50: . | M50: =IF(N52=0,0,N52) -> 0 | P50: =IF(Q52=0,M50,M50+Q52) -> 0 | S50: =IF(T52=0,P50,P50+T52) -> 0 | V50: =IF(W52=0,S50,S50+W52) -> 0 | Y50: =IF(Z52=0,V50,V50+Z52) -> 0 | AB50: =IF(AC52=0,Y50,Y50+AC52) -> 0 | AE50: =IF(AF52=0,AB50,AB50+AF52) -> 0 | AH50: =IF(AI52=0,AE50,AE50+AI52) -> 0 | AK50: =IF(AL52=0,AH50,AH50+AL52) -> 0 | AN50: =IF(AO52=0,AK50,AK50+AO52) -> 0 | AQ50: =IF(AR52=0,AN50,AN50+AR52) -> 0 | AT50: =IF(AU52=0,AQ50,AQ50+AU52) -> 0 | AW50: =IF(AX52=0,AT50,AT50+AX52) -> 0 | AZ50: =IF(BA52=0,AW50,AW50+BA52) -> 0 | BC50: =IF(BD52=0,AZ50,AZ50+BD52) -> 0 | BF50: =IF(BG52=0,BC50,BC50+BG52) -> 0 | BI50: =IF(BJ52=0,BF50,BF50+BJ52) -> 0 | BL50: =IF(BM52=0,BI50,BI50+BM52) -> 0 | BO50: =IF(BP52=0,BL50,BL50+BP52) -> 0 | BR50: =IF(BS52=0,BO50,BO50+BS52) -> 0 | BU50: =IF(BV52=0,BR50,BR50+BV52) -> 0 | BX50: =IF(BY52=0,BU50,BU50+BY52) -> 0 | CA50: =IF(CB52=0,BX50,BX50+CB52) -> 0 | CD50: =IF(CE52=0,CA50,CA50+CE52) -> 0 | CG50: =IFERROR(CG52/K52,0) -> 0
C51: . | E51: 0 | I51: .
A52: =#REF!+1 ->  | C52: $ | D52: =F52 -> 110000 | E52: $$ | F52: =C50 -> 110000 | I52: . | K52: 0 | M52: =ROUND(N52*$K52,2) -> 0 | P52: =ROUND(Q52*$K52,2) -> 0 | R52: =ROUND(S52*$K52,2) -> 0 | T52: =ROUND(U52*$K52,2) -> 0 | V52: =ROUND(W52*$K52,2) -> 0 | X52: =ROUND(Y52*$K52,2) -> 0 | Z52: =ROUND(AA52*$K52,2) -> 0 | AB52: =ROUND(AC52*$K52,2) -> 0 | AD52: =ROUND(AE52*$K52,2) -> 0 | AF52: =ROUND(AG52*$K52,2) -> 0 | AH52: =ROUND(AI52*$K52,2) -> 0 | AJ52: =ROUND(AK52*$K52,2) -> 0 | AL52: =ROUND(AM52*$K52,2) -> 0 | AN52: =ROUND(AO52*$K52,2) -> 0 | AP52: =ROUND(AQ52*$K52,2) -> 0 | AR52: =ROUND(AS52*$K52,2) -> 0 | AT52: =ROUND(AU52*$K52,2) -> 0 | AV52: =ROUND(AW52*$K52,2) -> 0 | AX52: =ROUND(AY52*$K52,2) -> 0 | AZ52: =ROUND(BA52*$K52,2) -> 0 | BB52: =ROUND(BC52*$K52,2) -> 0 | BD52: =ROUND(BE52*$K52,2) -> 0 | BF52: =ROUND(BG52*$K52,2) -> 0 | BH52: =ROUND(BI52*$K52,2) -> 0 | BJ52: =ROUND(BK52*$K52,2) -> 0 | BL52: =ROUND(BM52*$K52,2) -> 0 | BN52: =ROUND(BO52*$K52,2) -> 0 | BP52: =ROUND(BQ52*$K52,2) -> 0 | BR52: =ROUND(BS52*$K52,2) -> 0 | BT52: =ROUND(BU52*$K52,2) -> 0 | BV52: =ROUND(BW52*$K52,2) -> 0 | BX52: =ROUND(BY52*$K52,2) -> 0 | BZ52: =ROUND(CA52*$K52,2) -> 0 | CB52: =ROUND(CC52*$K52,2) -> 0 | CD52: =ROUND(CE52*$K52,2) -> 0 | CG52: =SUMIF(L$6:CF$6,"=1",$L52:$CF52) -> 0 | CJ52: =K52-CG52 -> 0
A53: =A52+1 ->  | C53: .
A54: =A53+1 ->  | C54: =C50+10000 -> 120000 | D54: . | E54: . | F54: =VLOOKUP(C54,Orc,4) -> IMPERMEABILIZAÇÃO | I54: . | M54: =IF(N56=0,0,N56) -> 0 | P54: =IF(Q56=0,M54,M54+Q56) -> 0 | S54: =IF(T56=0,P54,P54+T56) -> 0 | V54: =IF(W56=0,S54,S54+W56) -> 0 | Y54: =IF(Z56=0,V54,V54+Z56) -> 0 | AB54: =IF(AC56=0,Y54,Y54+AC56) -> 0 | AE54: =IF(AF56=0,AB54,AB54+AF56) -> 0 | AH54: =IF(AI56=0,AE54,AE54+AI56) -> 0 | AK54: =IF(AL56=0,AH54,AH54+AL56) -> 0 | AN54: =IF(AO56=0,AK54,AK54+AO56) -> 0 | AQ54: =IF(AR56=0,AN54,AN54+AR56) -> 0 | AT54: =IF(AU56=0,AQ54,AQ54+AU56) -> 0 | AW54: =IF(AX56=0,AT54,AT54+AX56) -> 0 | AZ54: =IF(BA56=0,AW54,AW54+BA56) -> 0 | BC54: =IF(BD56=0,AZ54,AZ54+BD56) -> 0 | BF54: =IF(BG56=0,BC54,BC54+BG56) -> 0 | BI54: =IF(BJ56=0,BF54,BF54+BJ56) -> 0 | BL54: =IF(BM56=0,BI54,BI54+BM56) -> 0 | BO54: =IF(BP56=0,BL54,BL54+BP56) -> 0 | BR54: =IF(BS56=0,BO54,BO54+BS56) -> 0 | BU54: =IF(BV56=0,BR54,BR54+BV56) -> 0 | BX54: =IF(BY56=0,BU54,BU54+BY56) -> 0 | CA54: =IF(CB56=0,BX54,BX54+CB56) -> 0 | CD54: =IF(CE56=0,CA54,CA54+CE56) -> 0 | CG54: =IFERROR(CG56/K56,0) -> 0
C55: . | E55: 0 | I55: .
A56: =#REF!+1 ->  | C56: $ | D56: =F56 -> 120000 | E56: $$ | F56: =C54 -> 120000 | I56: . | K56: 0 | M56: =ROUND(N56*$K56,2) -> 0 | P56: =ROUND(Q56*$K56,2) -> 0 | R56: =ROUND(S56*$K56,2) -> 0 | T56: =ROUND(U56*$K56,2) -> 0 | V56: =ROUND(W56*$K56,2) -> 0 | X56: =ROUND(Y56*$K56,2) -> 0 | Z56: =ROUND(AA56*$K56,2) -> 0 | AB56: =ROUND(AC56*$K56,2) -> 0 | AD56: =ROUND(AE56*$K56,2) -> 0 | AF56: =ROUND(AG56*$K56,2) -> 0 | AH56: =ROUND(AI56*$K56,2) -> 0 | AJ56: =ROUND(AK56*$K56,2) -> 0 | AL56: =ROUND(AM56*$K56,2) -> 0 | AN56: =ROUND(AO56*$K56,2) -> 0 | AP56: =ROUND(AQ56*$K56,2) -> 0 | AR56: =ROUND(AS56*$K56,2) -> 0 | AT56: =ROUND(AU56*$K56,2) -> 0 | AV56: =ROUND(AW56*$K56,2) -> 0 | AX56: =ROUND(AY56*$K56,2) -> 0 | AZ56: =ROUND(BA56*$K56,2) -> 0 | BB56: =ROUND(BC56*$K56,2) -> 0 | BD56: =ROUND(BE56*$K56,2) -> 0 | BF56: =ROUND(BG56*$K56,2) -> 0 | BH56: =ROUND(BI56*$K56,2) -> 0 | BJ56: =ROUND(BK56*$K56,2) -> 0 | BL56: =ROUND(BM56*$K56,2) -> 0 | BN56: =ROUND(BO56*$K56,2) -> 0 | BP56: =ROUND(BQ56*$K56,2) -> 0 | BR56: =ROUND(BS56*$K56,2) -> 0 | BT56: =ROUND(BU56*$K56,2) -> 0 | BV56: =ROUND(BW56*$K56,2) -> 0 | BX56: =ROUND(BY56*$K56,2) -> 0 | BZ56: =ROUND(CA56*$K56,2) -> 0 | CB56: =ROUND(CC56*$K56,2) -> 0 | CD56: =ROUND(CE56*$K56,2) -> 0 | CG56: =SUMIF(L$6:CF$6,"=1",$L56:$CF56) -> 0 | CJ56: =K56-CG56 -> 0
A57: =A56+1 ->  | C57: .
A58: =A57+1 ->  | C58: =C54+10000 -> 130000 | D58: . | E58: . | F58: =VLOOKUP(C58,Orc,4) -> FORRO | I58: . | M58: =IF(N60=0,0,N60) -> 0 | P58: =IF(Q60=0,M58,M58+Q60) -> 0 | S58: =IF(T60=0,P58,P58+T60) -> 0 | V58: =IF(W60=0,S58,S58+W60) -> 0 | Y58: =IF(Z60=0,V58,V58+Z60) -> 0 | AB58: =IF(AC60=0,Y58,Y58+AC60) -> 0 | AE58: =IF(AF60=0,AB58,AB58+AF60) -> 0 | AH58: =IF(AI60=0,AE58,AE58+AI60) -> 0 | AK58: =IF(AL60=0,AH58,AH58+AL60) -> 0 | AN58: =IF(AO60=0,AK58,AK58+AO60) -> 0 | AQ58: =IF(AR60=0,AN58,AN58+AR60) -> 0 | AT58: =IF(AU60=0,AQ58,AQ58+AU60) -> 0 | AW58: =IF(AX60=0,AT58,AT58+AX60) -> 0 | AZ58: =IF(BA60=0,AW58,AW58+BA60) -> 0 | BC58: =IF(BD60=0,AZ58,AZ58+BD60) -> 0 | BF58: =IF(BG60=0,BC58,BC58+BG60) -> 0 | BI58: =IF(BJ60=0,BF58,BF58+BJ60) -> 0 | BL58: =IF(BM60=0,BI58,BI58+BM60) -> 0 | BO58: =IF(BP60=0,BL58,BL58+BP60) -> 0 | BR58: =IF(BS60=0,BO58,BO58+BS60) -> 0 | BU58: =IF(BV60=0,BR58,BR58+BV60) -> 0 | BX58: =IF(BY60=0,BU58,BU58+BY60) -> 0 | CA58: =IF(CB60=0,BX58,BX58+CB60) -> 0 | CD58: =IF(CE60=0,CA58,CA58+CE60) -> 0 | CG58: =IFERROR(CG60/K60,0) -> 0
C59: . | E59: 0 | I59: .
A60: =#REF!+1 ->  | C60: $ | D60: =F60 -> 130000 | E60: $$ | F60: =C58 -> 130000 | I60: . | K60: 0 | M60: =ROUND(N60*$K60,2) -> 0 | P60: =ROUND(Q60*$K60,2) -> 0 | R60: =ROUND(S60*$K60,2) -> 0 | T60: =ROUND(U60*$K60,2) -> 0 | V60: =ROUND(W60*$K60,2) -> 0 | X60: =ROUND(Y60*$K60,2) -> 0 | Z60: =ROUND(AA60*$K60,2) -> 0 | AB60: =ROUND(AC60*$K60,2) -> 0 | AD60: =ROUND(AE60*$K60,2) -> 0 | AF60: =ROUND(AG60*$K60,2) -> 0 | AH60: =ROUND(AI60*$K60,2) -> 0 | AJ60: =ROUND(AK60*$K60,2) -> 0 | AL60: =ROUND(AM60*$K60,2) -> 0 | AN60: =ROUND(AO60*$K60,2) -> 0 | AP60: =ROUND(AQ60*$K60,2) -> 0 | AR60: =ROUND(AS60*$K60,2) -> 0 | AT60: =ROUND(AU60*$K60,2) -> 0 | AV60: =ROUND(AW60*$K60,2) -> 0 | AX60: =ROUND(AY60*$K60,2) -> 0 | AZ60: =ROUND(BA60*$K60,2) -> 0 | BB60: =ROUND(BC60*$K60,2) -> 0 | BD60: =ROUND(BE60*$K60,2) -> 0 | BF60: =ROUND(BG60*$K60,2) -> 0 | BH60: =ROUND(BI60*$K60,2) -> 0 | BJ60: =ROUND(BK60*$K60,2) -> 0 | BL60: =ROUND(BM60*$K60,2) -> 0 | BN60: =ROUND(BO60*$K60,2) -> 0 | BP60: =ROUND(BQ60*$K60,2) -> 0 | BR60: =ROUND(BS60*$K60,2) -> 0 | BT60: =ROUND(BU60*$K60,2) -> 0 | BV60: =ROUND(BW60*$K60,2) -> 0 | BX60: =ROUND(BY60*$K60,2) -> 0 | BZ60: =ROUND(CA60*$K60,2) -> 0 | CB60: =ROUND(CC60*$K60,2) -> 0 | CD60: =ROUND(CE60*$K60,2) -> 0 | CG60: =SUMIF(L$6:CF$6,"=1",$L60:$CF60) -> 0 | CJ60: =K60-CG60 -> 0
A61: =A60+1 ->  | C61: .
A62: =A61+1 ->  | C62: =C58+10000 -> 140000 | D62: . | E62: . | F62: =VLOOKUP(C62,Orc,4) -> REVESTIMENTOS | I62: . | M62: =IF(N64=0,0,N64) -> 0 | P62: =IF(Q64=0,M62,M62+Q64) -> 0 | S62: =IF(T64=0,P62,P62+T64) -> 0 | V62: =IF(W64=0,S62,S62+W64) -> 0 | Y62: =IF(Z64=0,V62,V62+Z64) -> 0 | AB62: =IF(AC64=0,Y62,Y62+AC64) -> 0 | AE62: =IF(AF64=0,AB62,AB62+AF64) -> 0 | AH62: =IF(AI64=0,AE62,AE62+AI64) -> 0 | AK62: =IF(AL64=0,AH62,AH62+AL64) -> 0 | AN62: =IF(AO64=0,AK62,AK62+AO64) -> 0 | AQ62: =IF(AR64=0,AN62,AN62+AR64) -> 0 | AT62: =IF(AU64=0,AQ62,AQ62+AU64) -> 0 | AW62: =IF(AX64=0,AT62,AT62+AX64) -> 0 | AZ62: =IF(BA64=0,AW62,AW62+BA64) -> 0 | BC62: =IF(BD64=0,AZ62,AZ62+BD64) -> 0 | BF62: =IF(BG64=0,BC62,BC62+BG64) -> 0 | BI62: =IF(BJ64=0,BF62,BF62+BJ64) -> 0 | BL62: =IF(BM64=0,BI62,BI62+BM64) -> 0 | BO62: =IF(BP64=0,BL62,BL62+BP64) -> 0 | BR62: =IF(BS64=0,BO62,BO62+BS64) -> 0 | BU62: =IF(BV64=0,BR62,BR62+BV64) -> 0 | BX62: =IF(BY64=0,BU62,BU62+BY64) -> 0 | CA62: =IF(CB64=0,BX62,BX62+CB64) -> 0 | CD62: =IF(CE64=0,CA62,CA62+CE64) -> 0 | CG62: =IFERROR(CG64/K64,0) -> 0
C63: . | E63: 0 | I63: .
A64: =#REF!+1 ->  | C64: $ | D64: =F64 -> 140000 | E64: $$ | F64: =C62 -> 140000 | I64: . | K64: 0 | M64: =ROUND(N64*$K64,2) -> 0 | P64: =ROUND(Q64*$K64,2) -> 0 | R64: =ROUND(S64*$K64,2) -> 0 | T64: =ROUND(U64*$K64,2) -> 0 | V64: =ROUND(W64*$K64,2) -> 0 | X64: =ROUND(Y64*$K64,2) -> 0 | Z64: =ROUND(AA64*$K64,2) -> 0 | AB64: =ROUND(AC64*$K64,2) -> 0 | AD64: =ROUND(AE64*$K64,2) -> 0 | AF64: =ROUND(AG64*$K64,2) -> 0 | AH64: =ROUND(AI64*$K64,2) -> 0 | AJ64: =ROUND(AK64*$K64,2) -> 0 | AL64: =ROUND(AM64*$K64,2) -> 0 | AN64: =ROUND(AO64*$K64,2) -> 0 | AP64: =ROUND(AQ64*$K64,2) -> 0 | AR64: =ROUND(AS64*$K64,2) -> 0 | AT64: =ROUND(AU64*$K64,2) -> 0 | AV64: =ROUND(AW64*$K64,2) -> 0 | AX64: =ROUND(AY64*$K64,2) -> 0 | AZ64: =ROUND(BA64*$K64,2) -> 0 | BB64: =ROUND(BC64*$K64,2) -> 0 | BD64: =ROUND(BE64*$K64,2) -> 0 | BF64: =ROUND(BG64*$K64,2) -> 0 | BH64: =ROUND(BI64*$K64,2) -> 0 | BJ64: =ROUND(BK64*$K64,2) -> 0 | BL64: =ROUND(BM64*$K64,2) -> 0 | BN64: =ROUND(BO64*$K64,2) -> 0 | BP64: =ROUND(BQ64*$K64,2) -> 0 | BR64: =ROUND(BS64*$K64,2) -> 0 | BT64: =ROUND(BU64*$K64,2) -> 0 | BV64: =ROUND(BW64*$K64,2) -> 0 | BX64: =ROUND(BY64*$K64,2) -> 0 | BZ64: =ROUND(CA64*$K64,2) -> 0 | CB64: =ROUND(CC64*$K64,2) -> 0 | CD64: =ROUND(CE64*$K64,2) -> 0 | CG64: =SUMIF(L$6:CF$6,"=1",$L64:$CF64) -> 0 | CJ64: =K64-CG64 -> 0
A65: =A64+1 ->  | C65: .
A66: =A65+1 ->  | C66: =C62+10000 -> 150000 | D66: . | E66: . | F66: =VLOOKUP(C66,Orc,4) -> INSTALAÇÕES HIDRÁULICAS | I66: . | M66: =IF(N68=0,0,N68) -> 0 | P66: =IF(Q68=0,M66,M66+Q68) -> 0 | S66: =IF(T68=0,P66,P66+T68) -> 0 | V66: =IF(W68=0,S66,S66+W68) -> 0 | Y66: =IF(Z68=0,V66,V66+Z68) -> 0 | AB66: =IF(AC68=0,Y66,Y66+AC68) -> 0 | AE66: =IF(AF68=0,AB66,AB66+AF68) -> 0 | AH66: =IF(AI68=0,AE66,AE66+AI68) -> 0 | AK66: =IF(AL68=0,AH66,AH66+AL68) -> 0 | AN66: =IF(AO68=0,AK66,AK66+AO68) -> 0 | AQ66: =IF(AR68=0,AN66,AN66+AR68) -> 0 | AT66: =IF(AU68=0,AQ66,AQ66+AU68) -> 0 | AW66: =IF(AX68=0,AT66,AT66+AX68) -> 0 | AZ66: =IF(BA68=0,AW66,AW66+BA68) -> 0 | BC66: =IF(BD68=0,AZ66,AZ66+BD68) -> 0 | BF66: =IF(BG68=0,BC66,BC66+BG68) -> 0 | BI66: =IF(BJ68=0,BF66,BF66+BJ68) -> 0 | BL66: =IF(BM68=0,BI66,BI66+BM68) -> 0 | BO66: =IF(BP68=0,BL66,BL66+BP68) -> 0 | BR66: =IF(BS68=0,BO66,BO66+BS68) -> 0 | BU66: =IF(BV68=0,BR66,BR66+BV68) -> 0 | BX66: =IF(BY68=0,BU66,BU66+BY68) -> 0 | CA66: =IF(CB68=0,BX66,BX66+CB68) -> 0 | CD66: =IF(CE68=0,CA66,CA66+CE68) -> 0 | CG66: =IFERROR(CG68/K68,0) -> 0
C67: . | E67: 0 | I67: .
A68: =#REF!+1 ->  | C68: $ | D68: =F68 -> 150000 | E68: $$ | F68: =C66 -> 150000 | I68: . | K68: 0 | M68: =ROUND(N68*$K68,2) -> 0 | P68: =ROUND(Q68*$K68,2) -> 0 | R68: =ROUND(S68*$K68,2) -> 0 | T68: =ROUND(U68*$K68,2) -> 0 | V68: =ROUND(W68*$K68,2) -> 0 | X68: =ROUND(Y68*$K68,2) -> 0 | Z68: =ROUND(AA68*$K68,2) -> 0 | AB68: =ROUND(AC68*$K68,2) -> 0 | AD68: =ROUND(AE68*$K68,2) -> 0 | AF68: =ROUND(AG68*$K68,2) -> 0 | AH68: =ROUND(AI68*$K68,2) -> 0 | AJ68: =ROUND(AK68*$K68,2) -> 0 | AL68: =ROUND(AM68*$K68,2) -> 0 | AN68: =ROUND(AO68*$K68,2) -> 0 | AP68: =ROUND(AQ68*$K68,2) -> 0 | AR68: =ROUND(AS68*$K68,2) -> 0 | AT68: =ROUND(AU68*$K68,2) -> 0 | AV68: =ROUND(AW68*$K68,2) -> 0 | AX68: =ROUND(AY68*$K68,2) -> 0 | AZ68: =ROUND(BA68*$K68,2) -> 0 | BB68: =ROUND(BC68*$K68,2) -> 0 | BD68: =ROUND(BE68*$K68,2) -> 0 | BF68: =ROUND(BG68*$K68,2) -> 0 | BH68: =ROUND(BI68*$K68,2) -> 0 | BJ68: =ROUND(BK68*$K68,2) -> 0 | BL68: =ROUND(BM68*$K68,2) -> 0 | BN68: =ROUND(BO68*$K68,2) -> 0 | BP68: =ROUND(BQ68*$K68,2) -> 0 | BR68: =ROUND(BS68*$K68,2) -> 0 | BT68: =ROUND(BU68*$K68,2) -> 0 | BV68: =ROUND(BW68*$K68,2) -> 0 | BX68: =ROUND(BY68*$K68,2) -> 0 | BZ68: =ROUND(CA68*$K68,2) -> 0 | CB68: =ROUND(CC68*$K68,2) -> 0 | CD68: =ROUND(CE68*$K68,2) -> 0 | CG68: =SUMIF(L$6:CF$6,"=1",$L68:$CF68) -> 0 | CJ68: =K68-CG68 -> 0
A69: =A68+1 ->  | C69: .
A70: =A69+1 ->  | C70: =C66+10000 -> 160000 | D70: . | E70: . | F70: =VLOOKUP(C70,Orc,4) -> INSTALAÇÕES ELÉTRICA | I70: . | M70: =IF(N72=0,0,N72) -> 0 | P70: =IF(Q72=0,M70,M70+Q72) -> 0 | S70: =IF(T72=0,P70,P70+T72) -> 0 | V70: =IF(W72=0,S70,S70+W72) -> 0 | Y70: =IF(Z72=0,V70,V70+Z72) -> 0 | AB70: =IF(AC72=0,Y70,Y70+AC72) -> 0 | AE70: =IF(AF72=0,AB70,AB70+AF72) -> 0 | AH70: =IF(AI72=0,AE70,AE70+AI72) -> 0 | AK70: =IF(AL72=0,AH70,AH70+AL72) -> 0 | AN70: =IF(AO72=0,AK70,AK70+AO72) -> 0 | AQ70: =IF(AR72=0,AN70,AN70+AR72) -> 0 | AT70: =IF(AU72=0,AQ70,AQ70+AU72) -> 0 | AW70: =IF(AX72=0,AT70,AT70+AX72) -> 0 | AZ70: =IF(BA72=0,AW70,AW70+BA72) -> 0 | BC70: =IF(BD72=0,AZ70,AZ70+BD72) -> 0 | BF70: =IF(BG72=0,BC70,BC70+BG72) -> 0 | BI70: =IF(BJ72=0,BF70,BF70+BJ72) -> 0 | BL70: =IF(BM72=0,BI70,BI70+BM72) -> 0 | BO70: =IF(BP72=0,BL70,BL70+BP72) -> 0 | BR70: =IF(BS72=0,BO70,BO70+BS72) -> 0 | BU70: =IF(BV72=0,BR70,BR70+BV72) -> 0 | BX70: =IF(BY72=0,BU70,BU70+BY72) -> 0 | CA70: =IF(CB72=0,BX70,BX70+CB72) -> 0 | CD70: =IF(CE72=0,CA70,CA70+CE72) -> 0 | CG70: =IFERROR(CG72/K72,0) -> 0
C71: . | E71: 0 | I71: .
A72: =#REF!+1 ->  | C72: $ | D72: =F72 -> 160000 | E72: $$ | F72: =C70 -> 160000 | I72: . | K72: 0 | M72: =ROUND(N72*$K72,2) -> 0 | P72: =ROUND(Q72*$K72,2) -> 0 | R72: =ROUND(S72*$K72,2) -> 0 | T72: =ROUND(U72*$K72,2) -> 0 | V72: =ROUND(W72*$K72,2) -> 0 | X72: =ROUND(Y72*$K72,2) -> 0 | Z72: =ROUND(AA72*$K72,2) -> 0 | AB72: =ROUND(AC72*$K72,2) -> 0 | AD72: =ROUND(AE72*$K72,2) -> 0 | AF72: =ROUND(AG72*$K72,2) -> 0 | AH72: =ROUND(AI72*$K72,2) -> 0 | AJ72: =ROUND(AK72*$K72,2) -> 0 | AL72: =ROUND(AM72*$K72,2) -> 0 | AN72: =ROUND(AO72*$K72,2) -> 0 | AP72: =ROUND(AQ72*$K72,2) -> 0 | AR72: =ROUND(AS72*$K72,2) -> 0 | AT72: =ROUND(AU72*$K72,2) -> 0 | AV72: =ROUND(AW72*$K72,2) -> 0 | AX72: =ROUND(AY72*$K72,2) -> 0 | AZ72: =ROUND(BA72*$K72,2) -> 0 | BB72: =ROUND(BC72*$K72,2) -> 0 | BD72: =ROUND(BE72*$K72,2) -> 0 | BF72: =ROUND(BG72*$K72,2) -> 0 | BH72: =ROUND(BI72*$K72,2) -> 0 | BJ72: =ROUND(BK72*$K72,2) -> 0 | BL72: =ROUND(BM72*$K72,2) -> 0 | BN72: =ROUND(BO72*$K72,2) -> 0 | BP72: =ROUND(BQ72*$K72,2) -> 0 | BR72: =ROUND(BS72*$K72,2) -> 0 | BT72: =ROUND(BU72*$K72,2) -> 0 | BV72: =ROUND(BW72*$K72,2) -> 0 | BX72: =ROUND(BY72*$K72,2) -> 0 | BZ72: =ROUND(CA72*$K72,2) -> 0 | CB72: =ROUND(CC72*$K72,2) -> 0 | CD72: =ROUND(CE72*$K72,2) -> 0 | CG72: =SUMIF(L$6:CF$6,"=1",$L72:$CF72) -> 0 | CJ72: =K72-CG72 -> 0
A73: =A72+1 -> 
A74: =A73+1 ->  | C74: =C70+10000 -> 170000 | D74: . | E74: . | F74: =VLOOKUP(C74,Orc,4) -> EQUIPAMENTOS | I74: . | M74: =IF(N76=0,0,N76) -> 0 | P74: =IF(Q76=0,M74,M74+Q76) -> 0 | S74: =IF(T76=0,P74,P74+T76) -> 0 | V74: =IF(W76=0,S74,S74+W76) -> 0 | Y74: =IF(Z76=0,V74,V74+Z76) -> 0 | AB74: =IF(AC76=0,Y74,Y74+AC76) -> 0 | AE74: =IF(AF76=0,AB74,AB74+AF76) -> 0 | AH74: =IF(AI76=0,AE74,AE74+AI76) -> 0 | AK74: =IF(AL76=0,AH74,AH74+AL76) -> 0 | AN74: =IF(AO76=0,AK74,AK74+AO76) -> 0 | AQ74: =IF(AR76=0,AN74,AN74+AR76) -> 0 | AT74: =IF(AU76=0,AQ74,AQ74+AU76) -> 0 | AW74: =IF(AX76=0,AT74,AT74+AX76) -> 0 | AZ74: =IF(BA76=0,AW74,AW74+BA76) -> 0 | BC74: =IF(BD76=0,AZ74,AZ74+BD76) -> 0 | BF74: =IF(BG76=0,BC74,BC74+BG76) -> 0 | BI74: =IF(BJ76=0,BF74,BF74+BJ76) -> 0 | BL74: =IF(BM76=0,BI74,BI74+BM76) -> 0 | BO74: =IF(BP76=0,BL74,BL74+BP76) -> 0 | BR74: =IF(BS76=0,BO74,BO74+BS76) -> 0 | BU74: =IF(BV76=0,BR74,BR74+BV76) -> 0 | BX74: =IF(BY76=0,BU74,BU74+BY76) -> 0 | CA74: =IF(CB76=0,BX74,BX74+CB76) -> 0 | CD74: =IF(CE76=0,CA74,CA74+CE76) -> 0 | CG74: =IFERROR(CG76/K76,0) -> 0
E75: 0 | I75: .
A76: =#REF!+1 ->  | C76: $ | D76: =F76 -> 170000 | E76: $$ | F76: =C74 -> 170000 | I76: . | K76: 0 | M76: =ROUND(N76*$K76,2) -> 0 | P76: =ROUND(Q76*$K76,2) -> 0 | R76: =ROUND(S76*$K76,2) -> 0 | T76: =ROUND(U76*$K76,2) -> 0 | V76: =ROUND(W76*$K76,2) -> 0 | X76: =ROUND(Y76*$K76,2) -> 0 | Z76: =ROUND(AA76*$K76,2) -> 0 | AB76: =ROUND(AC76*$K76,2) -> 0 | AD76: =ROUND(AE76*$K76,2) -> 0 | AF76: =ROUND(AG76*$K76,2) -> 0 | AH76: =ROUND(AI76*$K76,2) -> 0 | AJ76: =ROUND(AK76*$K76,2) -> 0 | AL76: =ROUND(AM76*$K76,2) -> 0 | AN76: =ROUND(AO76*$K76,2) -> 0 | AP76: =ROUND(AQ76*$K76,2) -> 0 | AR76: =ROUND(AS76*$K76,2) -> 0 | AT76: =ROUND(AU76*$K76,2) -> 0 | AV76: =ROUND(AW76*$K76,2) -> 0 | AX76: =ROUND(AY76*$K76,2) -> 0 | AZ76: =ROUND(BA76*$K76,2) -> 0 | BB76: =ROUND(BC76*$K76,2) -> 0 | BD76: =ROUND(BE76*$K76,2) -> 0 | BF76: =ROUND(BG76*$K76,2) -> 0 | BH76: =ROUND(BI76*$K76,2) -> 0 | BJ76: =ROUND(BK76*$K76,2) -> 0 | BL76: =ROUND(BM76*$K76,2) -> 0 | BN76: =ROUND(BO76*$K76,2) -> 0 | BP76: =ROUND(BQ76*$K76,2) -> 0 | BR76: =ROUND(BS76*$K76,2) -> 0 | BT76: =ROUND(BU76*$K76,2) -> 0 | BV76: =ROUND(BW76*$K76,2) -> 0 | BX76: =ROUND(BY76*$K76,2) -> 0 | BZ76: =ROUND(CA76*$K76,2) -> 0 | CB76: =ROUND(CC76*$K76,2) -> 0 | CD76: =ROUND(CE76*$K76,2) -> 0 | CG76: =SUMIF(L$6:CF$6,"=1",$L76:$CF76) -> 0 | CJ76: =K76-CG76 -> 0
A77: =A76+1 ->  | C77: .
A78: =A77+1 ->  | C78: =C74+10000 -> 180000 | D78: . | E78: . | F78: =VLOOKUP(C78,Orc,4) -> PINTURAS E TEXTURAS | I78: . | M78: =IF(N80=0,0,N80) -> 0 | P78: =IF(Q80=0,M78,M78+Q80) -> 0 | S78: =IF(T80=0,P78,P78+T80) -> 0 | V78: =IF(W80=0,S78,S78+W80) -> 0 | Y78: =IF(Z80=0,V78,V78+Z80) -> 0 | AB78: =IF(AC80=0,Y78,Y78+AC80) -> 0 | AE78: =IF(AF80=0,AB78,AB78+AF80) -> 0 | AH78: =IF(AI80=0,AE78,AE78+AI80) -> 0 | AK78: =IF(AL80=0,AH78,AH78+AL80) -> 0 | AN78: =IF(AO80=0,AK78,AK78+AO80) -> 0 | AQ78: =IF(AR80=0,AN78,AN78+AR80) -> 0 | AT78: =IF(AU80=0,AQ78,AQ78+AU80) -> 0 | AW78: =IF(AX80=0,AT78,AT78+AX80) -> 0 | AZ78: =IF(BA80=0,AW78,AW78+BA80) -> 0 | BC78: =IF(BD80=0,AZ78,AZ78+BD80) -> 0 | BF78: =IF(BG80=0,BC78,BC78+BG80) -> 0 | BI78: =IF(BJ80=0,BF78,BF78+BJ80) -> 0 | BL78: =IF(BM80=0,BI78,BI78+BM80) -> 0 | BO78: =IF(BP80=0,BL78,BL78+BP80) -> 0 | BR78: =IF(BS80=0,BO78,BO78+BS80) -> 0 | BU78: =IF(BV80=0,BR78,BR78+BV80) -> 0 | BX78: =IF(BY80=0,BU78,BU78+BY80) -> 0 | CA78: =IF(CB80=0,BX78,BX78+CB80) -> 0 | CD78: =IF(CE80=0,CA78,CA78+CE80) -> 0 | CG78: =IFERROR(CG80/K80,0) -> 0
C79: . | E79: 0 | I79: .
A80: =#REF!+1 ->  | C80: $ | D80: =F80 -> 180000 | E80: $$ | F80: =C78 -> 180000 | I80: . | K80: 0 | M80: =ROUND(N80*$K80,2) -> 0 | P80: =ROUND(Q80*$K80,2) -> 0 | R80: =ROUND(S80*$K80,2) -> 0 | T80: =ROUND(U80*$K80,2) -> 0 | V80: =ROUND(W80*$K80,2) -> 0 | X80: =ROUND(Y80*$K80,2) -> 0 | Z80: =ROUND(AA80*$K80,2) -> 0 | AB80: =ROUND(AC80*$K80,2) -> 0 | AD80: =ROUND(AE80*$K80,2) -> 0 | AF80: =ROUND(AG80*$K80,2) -> 0 | AH80: =ROUND(AI80*$K80,2) -> 0 | AJ80: =ROUND(AK80*$K80,2) -> 0 | AL80: =ROUND(AM80*$K80,2) -> 0 | AN80: =ROUND(AO80*$K80,2) -> 0 | AP80: =ROUND(AQ80*$K80,2) -> 0 | AR80: =ROUND(AS80*$K80,2) -> 0 | AT80: =ROUND(AU80*$K80,2) -> 0 | AV80: =ROUND(AW80*$K80,2) -> 0 | AX80: =ROUND(AY80*$K80,2) -> 0 | AZ80: =ROUND(BA80*$K80,2) -> 0 | BB80: =ROUND(BC80*$K80,2) -> 0 | BD80: =ROUND(BE80*$K80,2) -> 0 | BF80: =ROUND(BG80*$K80,2) -> 0 | BH80: =ROUND(BI80*$K80,2) -> 0 | BJ80: =ROUND(BK80*$K80,2) -> 0 | BL80: =ROUND(BM80*$K80,2) -> 0 | BN80: =ROUND(BO80*$K80,2) -> 0 | BP80: =ROUND(BQ80*$K80,2) -> 0 | BR80: =ROUND(BS80*$K80,2) -> 0 | BT80: =ROUND(BU80*$K80,2) -> 0 | BV80: =ROUND(BW80*$K80,2) -> 0 | BX80: =ROUND(BY80*$K80,2) -> 0 | BZ80: =ROUND(CA80*$K80,2) -> 0 | CB80: =ROUND(CC80*$K80,2) -> 0 | CD80: =ROUND(CE80*$K80,2) -> 0 | CG80: =SUMIF(L$6:CF$6,"=1",$L80:$CF80) -> 0 | CJ80: =K80-CG80 -> 0
A81: =A80+1 ->  | C81: .
A82: =A81+1 ->  | C82: =C78+10000 -> 190000 | D82: . | E82: . | F82: =VLOOKUP(C82,Orc,4) -> DRENAGEM | I82: . | M82: =IF(N84=0,0,N84) -> 0 | P82: =IF(Q84=0,M82,M82+Q84) -> 0 | S82: =IF(T84=0,P82,P82+T84) -> 0 | V82: =IF(W84=0,S82,S82+W84) -> 0 | Y82: =IF(Z84=0,V82,V82+Z84) -> 0 | AB82: =IF(AC84=0,Y82,Y82+AC84) -> 0 | AE82: =IF(AF84=0,AB82,AB82+AF84) -> 0 | AH82: =IF(AI84=0,AE82,AE82+AI84) -> 0 | AK82: =IF(AL84=0,AH82,AH82+AL84) -> 0 | AN82: =IF(AO84=0,AK82,AK82+AO84) -> 0 | AQ82: =IF(AR84=0,AN82,AN82+AR84) -> 0 | AT82: =IF(AU84=0,AQ82,AQ82+AU84) -> 0 | AW82: =IF(AX84=0,AT82,AT82+AX84) -> 0 | AZ82: =IF(BA84=0,AW82,AW82+BA84) -> 0 | BC82: =IF(BD84=0,AZ82,AZ82+BD84) -> 0 | BF82: =IF(BG84=0,BC82,BC82+BG84) -> 0 | BI82: =IF(BJ84=0,BF82,BF82+BJ84) -> 0 | BL82: =IF(BM84=0,BI82,BI82+BM84) -> 0 | BO82: =IF(BP84=0,BL82,BL82+BP84) -> 0 | BR82: =IF(BS84=0,BO82,BO82+BS84) -> 0 | BU82: =IF(BV84=0,BR82,BR82+BV84) -> 0 | BX82: =IF(BY84=0,BU82,BU82+BY84) -> 0 | CA82: =IF(CB84=0,BX82,BX82+CB84) -> 0 | CD82: =IF(CE84=0,CA82,CA82+CE84) -> 0 | CG82: =IFERROR(CG84/K84,0) -> 0
C83: . | E83: 0 | I83: .
A84: =#REF!+1 ->  | C84: $ | D84: =F84 -> 190000 | E84: $$ | F84: =C82 -> 190000 | I84: . | K84: 0 | M84: =ROUND(N84*$K84,2) -> 0 | P84: =ROUND(Q84*$K84,2) -> 0 | R84: =ROUND(S84*$K84,2) -> 0 | T84: =ROUND(U84*$K84,2) -> 0 | V84: =ROUND(W84*$K84,2) -> 0 | X84: =ROUND(Y84*$K84,2) -> 0 | Z84: =ROUND(AA84*$K84,2) -> 0 | AB84: =ROUND(AC84*$K84,2) -> 0 | AD84: =ROUND(AE84*$K84,2) -> 0 | AF84: =ROUND(AG84*$K84,2) -> 0 | AH84: =ROUND(AI84*$K84,2) -> 0 | AJ84: =ROUND(AK84*$K84,2) -> 0 | AL84: =ROUND(AM84*$K84,2) -> 0 | AN84: =ROUND(AO84*$K84,2) -> 0 | AP84: =ROUND(AQ84*$K84,2) -> 0 | AR84: =ROUND(AS84*$K84,2) -> 0 | AT84: =ROUND(AU84*$K84,2) -> 0 | AV84: =ROUND(AW84*$K84,2) -> 0 | AX84: =ROUND(AY84*$K84,2) -> 0 | AZ84: =ROUND(BA84*$K84,2) -> 0 | BB84: =ROUND(BC84*$K84,2) -> 0 | BD84: =ROUND(BE84*$K84,2) -> 0 | BF84: =ROUND(BG84*$K84,2) -> 0 | BH84: =ROUND(BI84*$K84,2) -> 0 | BJ84: =ROUND(BK84*$K84,2) -> 0 | BL84: =ROUND(BM84*$K84,2) -> 0 | BN84: =ROUND(BO84*$K84,2) -> 0 | BP84: =ROUND(BQ84*$K84,2) -> 0 | BR84: =ROUND(BS84*$K84,2) -> 0 | BT84: =ROUND(BU84*$K84,2) -> 0 | BV84: =ROUND(BW84*$K84,2) -> 0 | BX84: =ROUND(BY84*$K84,2) -> 0 | BZ84: =ROUND(CA84*$K84,2) -> 0 | CB84: =ROUND(CC84*$K84,2) -> 0 | CD84: =ROUND(CE84*$K84,2) -> 0 | CG84: =SUMIF(L$6:CF$6,"=1",$L84:$CF84) -> 0 | CJ84: =K84-CG84 -> 0
A85: =A84+1 ->  | C85: .
A86: =A85+1 ->  | C86: =C82+10000 -> 200000 | D86: . | E86: . | F86: =VLOOKUP(C86,Orc,4) -> MUROS, GRADIL, PORTÕES E ALAMBRADO | I86: . | M86: =IF(N88=0,0,N88) -> 0 | P86: =IF(Q88=0,M86,M86+Q88) -> 0 | S86: =IF(T88=0,P86,P86+T88) -> 0 | V86: =IF(W88=0,S86,S86+W88) -> 0 | Y86: =IF(Z88=0,V86,V86+Z88) -> 0 | AB86: =IF(AC88=0,Y86,Y86+AC88) -> 0 | AE86: =IF(AF88=0,AB86,AB86+AF88) -> 0 | AH86: =IF(AI88=0,AE86,AE86+AI88) -> 0 | AK86: =IF(AL88=0,AH86,AH86+AL88) -> 0 | AN86: =IF(AO88=0,AK86,AK86+AO88) -> 0 | AQ86: =IF(AR88=0,AN86,AN86+AR88) -> 0 | AT86: =IF(AU88=0,AQ86,AQ86+AU88) -> 0 | AW86: =IF(AX88=0,AT86,AT86+AX88) -> 0 | AZ86: =IF(BA88=0,AW86,AW86+BA88) -> 0 | BC86: =IF(BD88=0,AZ86,AZ86+BD88) -> 0 | BF86: =IF(BG88=0,BC86,BC86+BG88) -> 0 | BI86: =IF(BJ88=0,BF86,BF86+BJ88) -> 0 | BL86: =IF(BM88=0,BI86,BI86+BM88) -> 0 | BO86: =IF(BP88=0,BL86,BL86+BP88) -> 0 | BR86: =IF(BS88=0,BO86,BO86+BS88) -> 0 | BU86: =IF(BV88=0,BR86,BR86+BV88) -> 0 | BX86: =IF(BY88=0,BU86,BU86+BY88) -> 0 | CA86: =IF(CB88=0,BX86,BX86+CB88) -> 0 | CD86: =IF(CE88=0,CA86,CA86+CE88) -> 0 | CG86: =IFERROR(CG88/K88,0) -> 0
C87: . | E87: 0 | I87: .
A88: =#REF!+1 ->  | C88: $ | D88: =F88 -> 200000 | E88: $$ | F88: =C86 -> 200000 | I88: . | K88: 0 | M88: =ROUND(N88*$K88,2) -> 0 | P88: =ROUND(Q88*$K88,2) -> 0 | R88: =ROUND(S88*$K88,2) -> 0 | T88: =ROUND(U88*$K88,2) -> 0 | V88: =ROUND(W88*$K88,2) -> 0 | X88: =ROUND(Y88*$K88,2) -> 0 | Z88: =ROUND(AA88*$K88,2) -> 0 | AB88: =ROUND(AC88*$K88,2) -> 0 | AD88: =ROUND(AE88*$K88,2) -> 0 | AF88: =ROUND(AG88*$K88,2) -> 0 | AH88: =ROUND(AI88*$K88,2) -> 0 | AJ88: =ROUND(AK88*$K88,2) -> 0 | AL88: =ROUND(AM88*$K88,2) -> 0 | AN88: =ROUND(AO88*$K88,2) -> 0 | AP88: =ROUND(AQ88*$K88,2) -> 0 | AR88: =ROUND(AS88*$K88,2) -> 0 | AT88: =ROUND(AU88*$K88,2) -> 0 | AV88: =ROUND(AW88*$K88,2) -> 0 | AX88: =ROUND(AY88*$K88,2) -> 0 | AZ88: =ROUND(BA88*$K88,2) -> 0 | BB88: =ROUND(BC88*$K88,2) -> 0 | BD88: =ROUND(BE88*$K88,2) -> 0 | BF88: =ROUND(BG88*$K88,2) -> 0 | BH88: =ROUND(BI88*$K88,2) -> 0 | BJ88: =ROUND(BK88*$K88,2) -> 0 | BL88: =ROUND(BM88*$K88,2) -> 0 | BN88: =ROUND(BO88*$K88,2) -> 0 | BP88: =ROUND(BQ88*$K88,2) -> 0 | BR88: =ROUND(BS88*$K88,2) -> 0 | BT88: =ROUND(BU88*$K88,2) -> 0 | BV88: =ROUND(BW88*$K88,2) -> 0 | BX88: =ROUND(BY88*$K88,2) -> 0 | BZ88: =ROUND(CA88*$K88,2) -> 0 | CB88: =ROUND(CC88*$K88,2) -> 0 | CD88: =ROUND(CE88*$K88,2) -> 0 | CG88: =SUMIF(L$6:CF$6,"=1",$L88:$CF88) -> 0 | CJ88: =K88-CG88 -> 0
A89: =A88+1 ->  | C89: .
A90: =A89+1 ->  | C90: =C86+10000 -> 210000 | D90: . | E90: . | F90: =VLOOKUP(C90,Orc,4) -> LIMPEZA | I90: . | M90: =IF(N92=0,0,N92) -> 0 | P90: =IF(Q92=0,M90,M90+Q92) -> 0 | S90: =IF(T92=0,P90,P90+T92) -> 0 | V90: =IF(W92=0,S90,S90+W92) -> 0 | Y90: =IF(Z92=0,V90,V90+Z92) -> 0 | AB90: =IF(AC92=0,Y90,Y90+AC92) -> 0 | AE90: =IF(AF92=0,AB90,AB90+AF92) -> 0 | AH90: =IF(AI92=0,AE90,AE90+AI92) -> 0 | AK90: =IF(AL92=0,AH90,AH90+AL92) -> 0 | AN90: =IF(AO92=0,AK90,AK90+AO92) -> 0 | AQ90: =IF(AR92=0,AN90,AN90+AR92) -> 0 | AT90: =IF(AU92=0,AQ90,AQ90+AU92) -> 0 | AW90: =IF(AX92=0,AT90,AT90+AX92) -> 0 | AZ90: =IF(BA92=0,AW90,AW90+BA92) -> 0 | BC90: =IF(BD92=0,AZ90,AZ90+BD92) -> 0 | BF90: =IF(BG92=0,BC90,BC90+BG92) -> 0 | BI90: =IF(BJ92=0,BF90,BF90+BJ92) -> 0 | BL90: =IF(BM92=0,BI90,BI90+BM92) -> 0 | BO90: =IF(BP92=0,BL90,BL90+BP92) -> 0 | BR90: =IF(BS92=0,BO90,BO90+BS92) -> 0 | BU90: =IF(BV92=0,BR90,BR90+BV92) -> 0 | BX90: =IF(BY92=0,BU90,BU90+BY92) -> 0 | CA90: =IF(CB92=0,BX90,BX90+CB92) -> 0 | CD90: =IF(CE92=0,CA90,CA90+CE92) -> 0 | CG90: =IFERROR(CG92/K92,0) -> 0
C91: . | E91: 0 | I91: .
A92: =#REF!+1 ->  | C92: $ | D92: =F92 -> 210000 | E92: $$ | F92: =C90 -> 210000 | I92: . | K92: 0 | M92: =ROUND(N92*$K92,2) -> 0 | P92: =ROUND(Q92*$K92,2) -> 0 | R92: =ROUND(S92*$K92,2) -> 0 | T92: =ROUND(U92*$K92,2) -> 0 | V92: =ROUND(W92*$K92,2) -> 0 | X92: =ROUND(Y92*$K92,2) -> 0 | Z92: =ROUND(AA92*$K92,2) -> 0 | AB92: =ROUND(AC92*$K92,2) -> 0 | AD92: =ROUND(AE92*$K92,2) -> 0 | AF92: =ROUND(AG92*$K92,2) -> 0 | AH92: =ROUND(AI92*$K92,2) -> 0 | AJ92: =ROUND(AK92*$K92,2) -> 0 | AL92: =ROUND(AM92*$K92,2) -> 0 | AN92: =ROUND(AO92*$K92,2) -> 0 | AP92: =ROUND(AQ92*$K92,2) -> 0 | AR92: =ROUND(AS92*$K92,2) -> 0 | AT92: =ROUND(AU92*$K92,2) -> 0 | AV92: =ROUND(AW92*$K92,2) -> 0 | AX92: =ROUND(AY92*$K92,2) -> 0 | AZ92: =ROUND(BA92*$K92,2) -> 0 | BB92: =ROUND(BC92*$K92,2) -> 0 | BD92: =ROUND(BE92*$K92,2) -> 0 | BF92: =ROUND(BG92*$K92,2) -> 0 | BH92: =ROUND(BI92*$K92,2) -> 0 | BJ92: =ROUND(BK92*$K92,2) -> 0 | BL92: =ROUND(BM92*$K92,2) -> 0 | BN92: =ROUND(BO92*$K92,2) -> 0 | BP92: =ROUND(BQ92*$K92,2) -> 0 | BR92: =ROUND(BS92*$K92,2) -> 0 | BT92: =ROUND(BU92*$K92,2) -> 0 | BV92: =ROUND(BW92*$K92,2) -> 0 | BX92: =ROUND(BY92*$K92,2) -> 0 | BZ92: =ROUND(CA92*$K92,2) -> 0 | CB92: =ROUND(CC92*$K92,2) -> 0 | CD92: =ROUND(CE92*$K92,2) -> 0 | CG92: =SUMIF(L$6:CF$6,"=1",$L92:$CF92) -> 0 | CJ92: =K92-CG92 -> 0
A93: =A92+1 ->  | C93: .
A94: =A93+1 ->  | C94: =C90+10000 -> 220000 | D94: . | E94: . | F94: =VLOOKUP(C94,Orc,4) -> SISTEMA DE CLIMATIZAÇÃO, VENTILAÇÃO E EXAUSTÃO | I94: . | M94: =IF(N96=0,0,N96) -> 0 | P94: =IF(Q96=0,M94,M94+Q96) -> 0 | S94: =IF(T96=0,P94,P94+T96) -> 0 | V94: =IF(W96=0,S94,S94+W96) -> 0 | Y94: =IF(Z96=0,V94,V94+Z96) -> 0 | AB94: =IF(AC96=0,Y94,Y94+AC96) -> 0 | AE94: =IF(AF96=0,AB94,AB94+AF96) -> 0 | AH94: =IF(AI96=0,AE94,AE94+AI96) -> 0 | AK94: =IF(AL96=0,AH94,AH94+AL96) -> 0 | AN94: =IF(AO96=0,AK94,AK94+AO96) -> 0 | AQ94: =IF(AR96=0,AN94,AN94+AR96) -> 0 | AT94: =IF(AU96=0,AQ94,AQ94+AU96) -> 0 | AW94: =IF(AX96=0,AT94,AT94+AX96) -> 0 | AZ94: =IF(BA96=0,AW94,AW94+BA96) -> 0 | BC94: =IF(BD96=0,AZ94,AZ94+BD96) -> 0 | BF94: =IF(BG96=0,BC94,BC94+BG96) -> 0 | BI94: =IF(BJ96=0,BF94,BF94+BJ96) -> 0 | BL94: =IF(BM96=0,BI94,BI94+BM96) -> 0 | BO94: =IF(BP96=0,BL94,BL94+BP96) -> 0 | BR94: =IF(BS96=0,BO94,BO94+BS96) -> 0 | BU94: =IF(BV96=0,BR94,BR94+BV96) -> 0 | BX94: =IF(BY96=0,BU94,BU94+BY96) -> 0 | CA94: =IF(CB96=0,BX94,BX94+CB96) -> 0 | CD94: =IF(CE96=0,CA94,CA94+CE96) -> 0 | CG94: =IFERROR(CG96/K96,0) -> 0
C95: . | E95: 0 | I95: .
A96: =#REF!+1 ->  | C96: $ | D96: =F96 -> 220000 | E96: $$ | F96: =C94 -> 220000 | I96: . | K96: 0 | M96: =ROUND(N96*$K96,2) -> 0 | P96: =ROUND(Q96*$K96,2) -> 0 | R96: =ROUND(S96*$K96,2) -> 0 | T96: =ROUND(U96*$K96,2) -> 0 | V96: =ROUND(W96*$K96,2) -> 0 | X96: =ROUND(Y96*$K96,2) -> 0 | Z96: =ROUND(AA96*$K96,2) -> 0 | AB96: =ROUND(AC96*$K96,2) -> 0 | AD96: =ROUND(AE96*$K96,2) -> 0 | AF96: =ROUND(AG96*$K96,2) -> 0 | AH96: =ROUND(AI96*$K96,2) -> 0 | AJ96: =ROUND(AK96*$K96,2) -> 0 | AL96: =ROUND(AM96*$K96,2) -> 0 | AN96: =ROUND(AO96*$K96,2) -> 0 | AP96: =ROUND(AQ96*$K96,2) -> 0 | AR96: =ROUND(AS96*$K96,2) -> 0 | AT96: =ROUND(AU96*$K96,2) -> 0 | AV96: =ROUND(AW96*$K96,2) -> 0 | AX96: =ROUND(AY96*$K96,2) -> 0 | AZ96: =ROUND(BA96*$K96,2) -> 0 | BB96: =ROUND(BC96*$K96,2) -> 0 | BD96: =ROUND(BE96*$K96,2) -> 0 | BF96: =ROUND(BG96*$K96,2) -> 0 | BH96: =ROUND(BI96*$K96,2) -> 0 | BJ96: =ROUND(BK96*$K96,2) -> 0 | BL96: =ROUND(BM96*$K96,2) -> 0 | BN96: =ROUND(BO96*$K96,2) -> 0 | BP96: =ROUND(BQ96*$K96,2) -> 0 | BR96: =ROUND(BS96*$K96,2) -> 0 | BT96: =ROUND(BU96*$K96,2) -> 0 | BV96: =ROUND(BW96*$K96,2) -> 0 | BX96: =ROUND(BY96*$K96,2) -> 0 | BZ96: =ROUND(CA96*$K96,2) -> 0 | CB96: =ROUND(CC96*$K96,2) -> 0 | CD96: =ROUND(CE96*$K96,2) -> 0 | CG96: =SUMIF(L$6:CF$6,"=1",$L96:$CF96) -> 0 | CJ96: =K96-CG96 -> 0
A97: =#REF!+1 -> 
I98: .
C99: TOTAL GERAL
C100: STG | F100: SUBTOTAL GERAL | G100: R$ | K100: =SUM(K10:K98) -> 0 | M100: =SUMIF($C9:$C98,$C92,M9:M98) -> 0 | P100: =SUMIF($C9:$C98,$C92,P9:P98) -> 0 | S100: =SUMIF($C9:$C98,$C92,S9:S98) -> 0 | V100: =SUMIF($C9:$C98,$C92,V9:V98) -> 0 | Y100: =SUMIF($C9:$C98,$C92,Y9:Y98) -> 0 | AB100: =SUMIF($C9:$C98,$C92,AB9:AB98) -> 0 | AE100: =SUMIF($C9:$C98,$C92,AE9:AE98) -> 0 | AH100: =SUMIF($C9:$C98,$C92,AH9:AH98) -> 0 | AK100: =SUMIF($C9:$C98,$C92,AK9:AK98) -> 0 | AN100: =SUMIF($C9:$C98,$C92,AN9:AN98) -> 0 | AQ100: =SUMIF($C9:$C98,$C92,AQ9:AQ98) -> 0 | AT100: =SUMIF($C9:$C98,$C92,AT9:AT98) -> 0 | AW100: =SUMIF($C9:$C98,$C92,AW9:AW98) -> 0 | AZ100: =SUMIF($C9:$C98,$C92,AZ9:AZ98) -> 0 | BC100: =SUMIF($C9:$C98,$C92,BC9:BC98) -> 0 | BF100: =SUMIF($C9:$C98,$C92,BF9:BF98) -> 0 | BI100: =SUMIF($C9:$C98,$C92,BI9:BI98) -> 0 | BL100: =SUMIF($C9:$C98,$C92,BL9:BL98) -> 0 | BO100: =SUMIF($C9:$C98,$C92,BO9:BO98) -> 0 | BR100: =SUMIF($C9:$C98,$C92,BR9:BR98) -> 0 | BU100: =SUMIF($C9:$C98,$C92,BU9:BU98) -> 0 | BX100: =SUMIF($C9:$C98,$C92,BX9:BX98) -> 0 | CA100: =SUMIF($C9:$C98,$C92,CA9:CA98) -> 0 | CD100: =SUMIF($C9:$C98,$C92,CD9:CD98) -> 0 | CG100: =SUMIF($C9:$C98,$C92,CG9:CG98) -> 0 | CJ100: =K100-CG100 -> 0
F101: BDI SERVIÇOS (EXCETO GRUPO 17 E 22) | G101: % | I101: 0.3 | K101: =ROUND($I101*(K$100-K76-K96),2) -> 0 | M101: =$I101*(M100-M76-M96) -> 0 | P101: =$I101*(P100-P76-P96) -> 0 | S101: =$I101*(S100-S76-S96) -> 0 | V101: =$I101*(V100-V76-V96) -> 0 | Y101: =$I101*(Y100-Y76-Y96) -> 0 | AB101: =$I101*(AB100-AB76-AB96) -> 0 | AE101: =$I101*(AE100-AE76-AE96) -> 0 | AH101: =$I101*(AH100-AH76-AH96) -> 0 | AK101: =$I101*(AK100-AK76-AK96) -> 0 | AN101: =$I101*(AN100-AN76-AN96) -> 0 | AQ101: =$I101*(AQ100-AQ76-AQ96) -> 0 | AT101: =$I101*(AT100-AT76-AT96) -> 0 | AW101: =$I101*(AW100-AW76-AW96) -> 0 | AZ101: =$I101*(AZ100-AZ76-AZ96) -> 0 | BC101: =$I101*(BC100-BC76-BC96) -> 0 | BF101: =$I101*(BF100-BF76-BF96) -> 0 | BI101: =$I101*(BI100-BI76-BI96) -> 0 | BL101: =$I101*(BL100-BL76-BL96) -> 0 | BO101: =$I101*(BO100-BO76-BO96) -> 0 | BR101: =$I101*(BR100-BR76-BR96) -> 0 | BU101: =$I101*(BU100-BU76-BU96) -> 0 | BX101: =$I101*(BX100-BX76-BX96) -> 0 | CA101: =$I101*(CA100-CA76-CA96) -> 0 | CD101: =$I101*(CD100-CD76-CD96) -> 0 | CG101: =$I101*(CG100-CG76-CG96) -> 0 | CJ101: =K101-CG101 -> 0
F102: BDI EQUIPAMENTOS (GRUPO 17 E 22) | G102: % | I102: 0.2 | K102: =ROUND($I102*(K$76+K96),2) -> 0 | M102: =$I102*(M76+M96) -> 0 | P102: =$I102*(P76+P96) -> 0 | S102: =$I102*(S76+S96) -> 0 | V102: =$I102*(V76+V96) -> 0 | Y102: =$I102*(Y76+Y96) -> 0 | AB102: =$I102*(AB76+AB96) -> 0 | AE102: =$I102*(AE76+AE96) -> 0 | AH102: =$I102*(AH76+AH96) -> 0 | AK102: =$I102*(AK76+AK96) -> 0 | AN102: =$I102*(AN76+AN96) -> 0 | AQ102: =$I102*(AQ76+AQ96) -> 0 | AT102: =$I102*(AT76+AT96) -> 0 | AW102: =$I102*(AW76+AW96) -> 0 | AZ102: =$I102*(AZ76+AZ96) -> 0 | BC102: =$I102*(BC76+BC96) -> 0 | BF102: =$I102*(BF76+BF96) -> 0 | BI102: =$I102*(BI76+BI96) -> 0 | BL102: =$I102*(BL76+BL96) -> 0 | BO102: =$I102*(BO76+BO96) -> 0 | BR102: =$I102*(BR76+BR96) -> 0 | BU102: =$I102*(BU76+BU96) -> 0 | BX102: =$I102*(BX76+BX96) -> 0 | CA102: =$I102*(CA76+CA96) -> 0 | CD102: =$I102*(CD76+CD96) -> 0 | CG102: =$I102*(CG76+CG96) -> 0 | CJ102: =K102-CG102 -> 0
F103: ADMINISTRAÇÃO (EXCETO GRUPOS 01 E 02) | G103: % | I103: 0.0622 | K103: =ROUND($I103*(K$100-K12-K16),2) -> 0 | M103: =ROUND($I103*(M$100-M12-M16),2) -> 0 | P103: =ROUND($I103*(P$100-P12-P16),2) -> 0 | S103: =ROUND($I103*(S$100-S12-S16),2) -> 0 | V103: =ROUND($I103*(V$100-V12-V16),2) -> 0 | Y103: =ROUND($I103*(Y$100-Y12-Y16),2) -> 0 | AB103: =ROUND($I103*(AB$100-AB12-AB16),2) -> 0 | AE103: =ROUND($I103*(AE$100-AE12-AE16),2) -> 0 | AH103: =ROUND($I103*(AH$100-AH12-AH16),2) -> 0 | AK103: =ROUND($I103*(AK$100-AK12-AK16),2) -> 0 | AN103: =ROUND($I103*(AN$100-AN12-AN16),2) -> 0 | AQ103: =ROUND($I103*(AQ$100-AQ12-AQ16),2) -> 0 | AT103: =ROUND($I103*(AT$100-AT12-AT16),2) -> 0 | AW103: =ROUND($I103*(AW$100-AW12-AW16),2) -> 0 | AZ103: =ROUND($I103*(AZ$100-AZ12-AZ16),2) -> 0 | BC103: =ROUND($I103*(BC$100-BC12-BC16),2) -> 0 | BF103: =ROUND($I103*(BF$100-BF12-BF16),2) -> 0 | BI103: =ROUND($I103*(BI$100-BI12-BI16),2) -> 0 | BL103: =ROUND($I103*(BL$100-BL12-BL16),2) -> 0 | BO103: =ROUND($I103*(BO$100-BO12-BO16),2) -> 0 | BR103: =ROUND($I103*(BR$100-BR12-BR16),2) -> 0 | BU103: =ROUND($I103*(BU$100-BU12-BU16),2) -> 0 | BX103: =ROUND($I103*(BX$100-BX12-BX16),2) -> 0 | CA103: =ROUND($I103*(CA$100-CA12-CA16),2) -> 0 | CD103: =ROUND($I103*(CD$100-CD12-CD16),2) -> 0 | CG103: =ROUND($I103*(CG$100-CG12-CG16),2) -> 0 | CJ103: =K103-CG103 -> 0
F105: TOTAL GERAL | K105: =SUM(K100:K104) -> 0 | M105: =M100+M101+M102+M103 -> 0 | N105: =IFERROR(M105/$K105,0) -> 0 | P105: =P100+P101+P102+P103 -> 0 | Q105: =IFERROR(P105/$K105,0) -> 0 | S105: =S100+S101+S102+S103 -> 0 | T105: =IFERROR(S105/$K105,0) -> 0 | V105: =V100+V101+V102+V103 -> 0 | W105: =IFERROR(V105/$K105,0) -> 0 | Y105: =Y100+Y101+Y102+Y103 -> 0 | Z105: =IFERROR(Y105/$K105,0) -> 0 | AB105: =AB100+AB101+AB102+AB103 -> 0 | AC105: =IFERROR(AB105/$K105,0) -> 0 | AE105: =AE100+AE101+AE102+AE103 -> 0 | AF105: =IFERROR(AE105/$K105,0) -> 0 | AH105: =AH100+AH101+AH102+AH103 -> 0 | AI105: =IFERROR(AH105/$K105,0) -> 0 | AK105: =AK100+AK101+AK102+AK103 -> 0 | AL105: =IFERROR(AK105/$K105,0) -> 0 | AN105: =AN100+AN101+AN102+AN103 -> 0 | AO105: =IFERROR(AN105/$K105,0) -> 0 | AQ105: =AQ100+AQ101+AQ102+AQ103 -> 0 | AR105: =IFERROR(AQ105/$K105,0) -> 0 | AT105: =AT100+AT101+AT102+AT103 -> 0 | AU105: =IFERROR(AT105/$K105,0) -> 0 | AW105: =AW100+AW101+AW102+AW103 -> 0 | AX105: =IFERROR(AW105/$K105,0) -> 0 | AZ105: =AZ100+AZ101+AZ102+AZ103 -> 0 | BA105: =IFERROR(AZ105/$K105,0) -> 0 | BC105: =BC100+BC101+BC102+BC103 -> 0 | BD105: =IFERROR(BC105/$K105,0) -> 0 | BF105: =BF100+BF101+BF102+BF103 -> 0 | BG105: =IFERROR(BF105/$K105,0) -> 0 | BI105: =BI100+BI101+BI102+BI103 -> 0 | BJ105: =IFERROR(BI105/$K105,0) -> 0 | BL105: =BL100+BL101+BL102+BL103 -> 0 | BM105: =IFERROR(BL105/$K105,0) -> 0 | BO105: =BO100+BO101+BO102+BO103 -> 0 | BP105: =IFERROR(BO105/$K105,0) -> 0 | BR105: =BR100+BR101+BR102+BR103 -> 0 | BS105: =IFERROR(BR105/$K105,0) -> 0 | BU105: =BU100+BU101+BU102+BU103 -> 0 | BV105: =IFERROR(BU105/$K105,0) -> 0 | BX105: =BX100+BX101+BX102+BX103 -> 0 | BY105: =IFERROR(BX105/$K105,0) -> 0 | CA105: =CA100+CA101+CA102+CA103 -> 0 | CB105: =IFERROR(CA105/$K105,0) -> 0 | CD105: =CD100+CD101+CD102+CD103 -> 0 | CE105: =IFERROR(CD105/$K105,0) -> 0 | CG105: =CG100+CG101+CG102+CG103 -> 0 | CH105: =IFERROR(CG105/$K105,0) -> 0 | CJ105: =K105-CG105 -> 0
M106: =M105 -> 0 | N106: =N105 -> 0 | P106: =M106+P105 -> 0 | Q106: =N106+Q105 -> 0 | S106: =P106+S105 -> 0 | T106: =Q106+T105 -> 0 | V106: =S106+V105 -> 0 | W106: =T106+W105 -> 0 | Y106: =V106+Y105 -> 0 | Z106: =W106+Z105 -> 0 | AB106: =Y106+AB105 -> 0 | AC106: =Z106+AC105 -> 0 | AE106: =AB106+AE105 -> 0 | AF106: =AC106+AF105 -> 0 | AH106: =AE106+AH105 -> 0 | AI106: =AF106+AI105 -> 0 | AK106: =AH106+AK105 -> 0 | AL106: =AI106+AL105 -> 0 | AN106: =AK106+AN105 -> 0 | AO106: =AL106+AO105 -> 0 | AQ106: =AN106+AQ105 -> 0 | AR106: =AO106+AR105 -> 0 | AT106: =AQ106+AT105 -> 0 | AU106: =AR106+AU105 -> 0 | AW106: =AT106+AW105 -> 0 | AX106: =AU106+AX105 -> 0 | AZ106: =AW106+AZ105 -> 0 | BA106: =AX106+BA105 -> 0 | BC106: =AZ106+BC105 -> 0 | BD106: =BA106+BD105 -> 0 | BF106: =BC106+BF105 -> 0 | BG106: =BD106+BG105 -> 0 | BI106: =BF106+BI105 -> 0 | BJ106: =BG106+BJ105 -> 0 | BL106: =BI106+BL105 -> 0 | BM106: =BJ106+BM105 -> 0 | BO106: =BL106+BO105 -> 0 | BP106: =BM106+BP105 -> 0 | BR106: =BO106+BR105 -> 0 | BS106: =BP106+BS105 -> 0 | BU106: =BR106+BU105 -> 0 | BV106: =BS106+BV105 -> 0 | BX106: =BU106+BX105 -> 0 | BY106: =BV106+BY105 -> 0 | CA106: =BX106+CA105 -> 0 | CB106: =BY106+CB105 -> 0 | CD106: =CA106+CD105 -> 0 | CE106: =CB106+CE105 -> 0
F126: SALDO | K126: =K105 -> 0 | M126: =$K126-M106 -> 0 | N126: =M126/$K126 ->  | P126: =$K126-P106 -> 0 | Q126: =P126/$K126 ->  | S126: =$K126-S106 -> 0 | T126: =S126/$K126 ->  | V126: =$K126-V106 -> 0 | W126: =V126/$K126 ->  | Y126: =$K126-Y106 -> 0 | Z126: =Y126/$K126 ->  | AB126: =$K126-AB106 -> 0 | AC126: =AB126/$K126 ->  | AE126: =$K126-AE106 -> 0 | AF126: =AE126/$K126 ->  | AH126: =$K126-AH106 -> 0 | AI126: =AH126/$K126 ->  | AK126: =$K126-AK106 -> 0 | AL126: =AK126/$K126 ->  | AN126: =$K126-AN106 -> 0 | AO126: =AN126/$K126 ->  | AQ126: =$K126-AQ106 -> 0 | AR126: =AQ126/$K126 ->  | AT126: =$K126-AT106 -> 0 | AU126: =AT126/$K126 ->  | AW126: =$K126-AW106 -> 0 | AX126: =AW126/$K126 ->  | AZ126: =$K126-AZ106 -> 0 | BA126: =AZ126/$K126 ->  | BC126: =$K126-BC106 -> 0 | BD126: =BC126/$K126 ->  | BF126: =$K126-BF106 -> 0 | BG126: =BF126/$K126 ->  | BI126: =$K126-BI106 -> 0 | BJ126: =BI126/$K126 ->  | BL126: =$K126-BL106 -> 0 | BM126: =BL126/$K126 ->  | BO126: =$K126-BO106 -> 0 | BP126: =BO126/$K126 ->  | BR126: =$K126-BR106 -> 0 | BS126: =BR126/$K126 ->  | BU126: =$K126-BU106 -> 0 | BV126: =BU126/$K126 ->  | BX126: =$K126-BX106 -> 0 | BY126: =BX126/$K126 ->  | CA126: =$K126-CA106 -> 0 | CB126: =CA126/$K126 ->  | CD126: 0 | CE126: =CD126/$K126 ->  | CG126: =CG122+CG123+CG124 -> 0 | CH126: =CG126/$K126 -> 
F128: MEDIDO
F129: FÍSICO
